{"text_format":"1","workbook":"xlsx","n_sheets":6,"sheets":["Användarguide","Indata och beräkning","EC-beräkning","Resultat","Data","Fördjupning med ekvationer"],"not_rendered":{"charts":0,"images":6,"macros":1,"external_links":0,"defined_names":83,"comments":2,"pivot_tables":0},"unopened":[],"bounds":{"document_bytes":16777216,"sheet_cells":100000,"rows_first":2000,"rows_last":500,"rows_between":2000,"halvings":0,"cell_chars":16384,"cell_head_chars":4096},"cells_cut":0,"cells_raw":0,"read":"whole","date_system":"1900"}

{"sheet":"Användarguide","index":0,"n_rows":95,"n_cols":18,"rows_kept":95,"cut":false,"hidden":false,"merged":[]}
[null,null,null,null,null,null,null,null,null,null,null,null,null,null,null,null,"v1.1"]
[]
[]
[null,null,null,null,null,null,null,null,null,null,null,null,null,null,null,null,null,"Klicka här för att komma till STEMFS 2025:2"]
[]
[]
[]
[]
[]
[]
[]
[]
[]
[null,null,null,null,null,null,null,null,null,null,null,null,null,null,null,null,null,"Klicka här för att komma till STEMFS 2025:2"]
[]
[]
[]
[]
[]
[]
[]
[]
[]
[]
[]
[]
[]
[]
[]
[]
[]
[]
[]
[]
[]
[]
[]
[]
[]
[]
[]
[]
[]
[]
[]
[]
[]
[]
[]
[]
[]
[]
[]
[]
[]
[]
[]
[]
[]
[]
[]
[]
[]
[]
[]
[]
[]
[null,null,null,null,null,null,null,null,null,null,null,null,null,null,null,null,null,"Klicka här för att komma till Kommissionens genomför(…) 2022/996"]
[]
[null,null,null,null,null,null,null,null,null,null,null,null,null,null,null,null,null,"Klicka här för att komma till STEMFS 2025:2"]
[]
[]
[]
[]
[]
[]
[]
[]
[]
[]
[null,null,null,null,null,null,null,null,null,null,null,null,null,null,null,null,null,"Klicka här för att komma till Kommissionens genomför(…) 2022/996"]
[]
[]
[]
[]
[]
[]
[]
[]
[]
[]
[]
[]
[]
[null,null,null,null,null,null,null,null,null,null,null,null,null,null,null,null,null,"Klicka här för att komma till SeaRates"]

{"sheet":"Indata och beräkning","index":1,"n_rows":114,"n_cols":9,"rows_kept":114,"cut":false,"hidden":false,"merged":[[56,2,58,2],[54,2,55,2],[51,2,52,2],[37,2,42,2],[43,2,45,2]]}
[null,null,null,null,"?"]
[null,null,null,"Grunddata",{"$f":"IF(E4=\"Fast\",\"Biobränsle\",IF(OR(E4=\"\",E6=\"\"),\"\",IF(AND(E4=\"Flytande\",E6=\"Motordrift\"),\"Biodrivmedel\",\"Flytande biobränsle\")))","v":""}]
[]
[null,null,null,"Bränsletyp"]
[null,null,null,"Bränsle"]
[null,null,null,"Användningsområde"]
[null,null,null,"Hållbar mängd (välj enhet i drop-down på nästa rad)",null,null,null,null,"Enheter: flytande bränslen = kg eller m3 vid 15 °C, fasta bränslen = MWh  (framräknat på det sätt som framgår av kontrollsystemet). När den hållbara mängden utgör en delmängd i ett bränsle ska andelen hållbart bränsle beräknas  utifrån de ingående komponenternas energiinnehåll. "]
[null,null,null,"Enhet för värdet på hållbar mängd"]
[null,null,null,{"$f":"\"Värmevärde [\" & Enhet_värmevärde & \"]\"","v":"Värmevärde []"},{"$f":"IF(OR(E5=\"Övriga flytande\",E5=\"Övriga fasta\"), E10, IF(Enhet_värmevärde= \"MJ/l vid 15° C\", _xlfn.XLOOKUP(E5, Data!A52:A62, Data!E52:E62), _xlfn.XLOOKUP(E5,Data!A52:A67, Data!F52:F67)))","v":{"$error":"#N/A"}},null,null,null,"Enheter: flytande bränslen = MJ/l vid 15° C eller MJ/kg."]
[null,null,null,{"$f":"\"Värmevärde (eget värde), [\" & Enhet_värmevärde_eget &\"]\"","v":"Värmevärde (eget värde), [MJ/kg]"},null,null,null,null,"Enheter: flytande bränslen = MJ/l vid 15° C eller MJ/kg."]
[null,null,null,"Densitet (eget värde), [kg/m3]",null,null,null,null,"Anges för beräkning av lagring då bränslet tillhör kategorin \"övriga flytande\" och värmevärdet anges i MJ/kg. Anges även för beräkning av Sjö-och Land-transport då bränslet tillhör någon av katgorierna \"Övriga flytande\" eller \"Övriga fasta\"."]
[null,null,null,"Metod för att beräkna växthusgasutsläppet",null,null,null,null,"Förklaring av de olika alternativen finns i fliken \"Användarguide\" rubriken \"Grunddata\"."]
[null,null,null,"Produktionskedja",null,null,null,null,"Typ av produktionskedja enligt bilaga 2–8 i STEMFS 2025:2."]
[]
[]
[null,null,null,"Beräkningens omfattning och metod"]
[]
[null,null,"Term","Omfattning och metod","Värde [g CO2eq/MJ]",null,null,null,"Valen i tabellen påverkar vilka delar av beräkningen som inkluderas. Mer information i fliken \"Användarguide\", rubriken \"Grunddata\"."]
[null,null,"Leverantörens tidigare utsläpp"]
[null,null,"Utvinning eller odling av råvaror (eec)"]
[null,null,"Bearbetning (ep)"]
[null,null,"Transport och distribution (etd)"]
[null,null,"Användning av bränslet (eu)",null,null,null,null,null,"Avser metan och lustgasutsläpp från förbränningen av bränslet. Vid valet \"Värde från Genomförandeförordningen\" blir fasta bränslen = 0,4 g CO2eq/MJ, flytande biobränslen = 0,14 g CO2eq/MJ (Kommissionens genomförandeförordning (EU) 2022/996 av den 14 juni 2022 om regler för att verifiera hållbarhet och kriterier för minskade växthusgasutsläpp och kriterier för låg risk för indirekt ändring av markanvändning)."]
[null,null,"Växthusgasutsläpp från energiomvandling (EC)","Omfattas",{"$f":"IF(D24=\"Omfattas\",IF( E103=\"\",\"Fyll i fliken EC-beräkning!\",IF(OR('EC-beräkning'!G7<>\"\",'EC-beräkning'!G8<>\"\",'EC-beräkning'!G9<>\"\"),\"Se över indata på fliken EC-beräkning\",\"\")),\"\")","v":"Fyll i fliken EC-beräkning!"},null,null,null,"EC-beräkningen ligger som en separat flik."]
[]
[null,null,"Term","Omfattning och metod","Värde [g CO2eq/MJ]"]
[null,null,"Förändringar i kollager (el)",null,null,null,null,null,"Mer information om förändrad markanvändning finns i STEMFS 2025:2."]
[null,null,"Kollager förbättrade jordbruksmetoder (esca)"]
[null,null,"Avskiljning och lagring av CO2 (eccs)",null,null,null,null,null,"Avser endast utsläpp från produktionen av bränslet, och inte infångande av CO2 från förbränning av bränslet. Fyll i hur många gram CO2eq som har avskilts."]
[null,null,"Avskiljning och ersättning av CO2 (eccr)"]
[]
[]
[null,null,null,"Utvinning eller odling av råvaror (eec)"]
[]
[null,null,"Område",null,"Värde [g CO2eq/MJ]",null,null,null,"För detaljer - se Kommissionens genomförandeförordning (EU) 2022/996 av (…), bilaga VII"]
[null,null,"Produktionen av kemikalier/produkter som används vid uttag eller odling"]
[null,null,"Användningen av el inom jordbruk eller skogsbruk"]
[null,null,"Utvinnings- eller odlingsprocessen","Användning av bränsle för jordbruks- eller skogsbruksmaskiner"]
[null,null,null,"Kemiska gödselmedel och bekämpningsmedel"]
[null,null,null,"Utsädesmaterial"]
[null,null,null,"Utsläpp från neutralisering av försurning via gödselmedel"]
[null,null,null,"Markutsläpp från kalkning (jordbrukskalk)"]
[null,null,null,"Markutsläpp av dikväveoxid (N2O) från odling av grödor"]
[null,null,"Insamling, torkning och lagring av råvaror","Utsläpp från insamling inkl transport till lagring"]
[null,null,null,"Torkning av biomassa före lagring"]
[null,null,null,"Lagring och hantering av biomassa"]
[null,null,"Avfall och utlakning"]
[null,null,null,null,null,null,null,{"$f":"SUM(E36:E47)","v":0}]
[]
[null,null,null,"Bearbetning (ep)"]
[]
[null,null,"Utbyte i processen","Utbyte biobränsle [MJ biobränsle/MJ råvara]"]
[null,null,null,"Utbyte samprodukt [MJ samprodukt/MJ råvara]"]
[]
[null,null,"Energitillförsel, el","Elektrisk energi [MJ/MJ råvara]"]
[null,null,null,"Elmix"]
[null,null,"Energitillförsel, ånga","Ånga [MJ/MJ råvara]",null,null,null,null,"Energitillförsel i form av ånga inkluderar torkning av mellanliggande produkter och material i de fall då detta är relevant."]
[null,null,null,"Verkningsgrad för ångprocessen [%]"]
[null,null,null,"Bränsle till ångproduktion"]
[null,null,"Utsläpp från fossila insatsvaror [g CO2eq/MJ råvara]"]
[null,null,"Utsläpp från övriga bränslen  [g CO2eq/MJ råvara]"]
[null,null,"Övriga utsläpp g CO2eq/MJ råvara]"]
[null,null,null,null,null,null,null,{"$f":"IFERROR((IF(E55>0,E55*_xlfn.XLOOKUP(E56,Data!A8:A10,Data!G8:G10),0)+IF(E57>0,E57/E58*_xlfn.XLOOKUP(E59,Data!A12:A20,Data!G12:G20),0)+SUM(E60:E62))*E52/(E52+E53),\"\")","v":""},"För detaljer kring bakomliggande ekvation, se fliken \"Användarguide\" och \"Fördjupning med ekvationer\"."]
[]
[null,null,null,"Transport och distribution (etd)"]
[null,null,null,{"$f":"IF(AND(OR(ISBLANK(E11),ISBLANK(E10)),OR(E5=\"Övriga flytande\",E5=\"Övriga fasta\")), \"Ange värmevärde och densitet för bränslet i tabellen för Grunddata!\",\"\")","v":""}]
[]
[null,null,null,"Lagring",null,null,null,null,"Beräkningen för lagring avser utsläpp för varmhållning av ett bränsle. "]
[null,null,null,"Vid hamn i ursprungsland","Vid hamn i Sverige","Lagring vid förbränningsanläggning"]
[null,null,"Omfattning"]
[null,null,"Lagringstid [mån]",null,null,null,null,null,"0-12 mån."]
[null,null,"Uppvärmingskälla",null,null,null,null,null,"För uppvärmningskälla \"Okänt\" antas oljepanna."]
[null,null,"Storlek på cistern",null,null,null,null,{"$f":"IFERROR(IF(D70=\"Omfattas\", _xlfn.XLOOKUP(D73,Data!A71:A74,Data!H71:H74)*D71*_xlfn.XLOOKUP(D72,Data!A22:A26,Data!G22:G26)/(IF(Enhet_värmevärde=\"MJ/l vid 15° C\", E9*1000, E9*IF(E5=\"Övriga flytande\", E11,_xlfn.XLOOKUP(E5, Data!A52:A67, Data!D52:D67)))*0.5*_xlfn.XLOOKUP(D73,Data!A71:A74,Data!I71:I74)), 0) +IF(E70=\"Omfattas\", _xlfn.XLOOKUP(E73,Data!A71:A74,Data!H71:H74)*E71*_xlfn.XLOOKUP(E72,Data!A22:A26,Data!G22:G26)/(IF(Enhet_värmevärde=\"MJ/l vid 15° C\", E9*1000, E9*IF(E5=\"Övriga flytande\", E11,_xlfn.XLOOKUP(E5, Data!A52:A67, Data!D52:D67)))*0.5*_xlfn.XLOOKUP(E73,Data!A71:A74,Data!I71:I74)), 0)+IF(F70=\"Omfattas\", _xlfn.XLOOKUP(F73,Data!A71:A74,Data!H71:H74)*F71*_xlfn.XLOOKUP(F72,Data!A22:A26,Data!G22:G26)/(IF(Enhet_värmevärde=\"MJ/l vid 15° C\", E9*1000, E9*IF(E5=\"Övriga flytande\", E11,_xlfn.XLOOKUP(E5, Data!A52:A67, Data!D52:D67)))*0.5*_xlfn.XLOOKUP(F73,Data!A71:A74,Data!I71:I74)), 0),\"\")","v":0},"För detaljer kring bakomliggande ekvation, se fliken \"Användarguide\" och \"Fördjupning med ekvationer\"."]
[]
[null,null,null,"Sjötransport"]
[null,null,null,"Från raffinering/uppkomst till lagringsplats","Från lagringsplats utomlands till hamn i Sverige","Från hamn till lagringen vid hamn i Sverige"]
[null,null,"Omfattning"]
[null,null,"Fordonstyp",null,null,null,null,null,"Om \"Okänt\" antas restrektivt värde."]
[null,null,"Bränsleslag",null,null,null,null,null,"Klimatpåverkan per MJ transporterat biobränsle för ett fartyg fullastat med endast biobränslet. Motsvarar genomsnittlig klimatpåverkan per MJ för transport av biobränslet som endast del av samma last. Fartyget antas vara fullastat. Endast beräkning för vald omfattning. Om \"Okänt\" används ett restriktivt värde."]
[null,null,"Transportavstånd [km]",null,null,null,null,{"$f":"IFERROR((IF(D77=\"Omfattas\",_xlfn.XLOOKUP(D79,Data!A28:A34,Data!G28:G34)*_xlfn.XLOOKUP(D78,Data!A86:A89,Data!K86:K89)*_xlfn.XLOOKUP(D78,Data!A86:A89,Data!M86:M89)*D80/(_xlfn.XLOOKUP(D78,Data!A86:A89,Data!L86:L89)*1000), 0)+IF(E77=\"Omfattas\", _xlfn.XLOOKUP(E79,Data!A28:A34,Data!G28:G34)*_xlfn.XLOOKUP(E78,Data!A86:A89,Data!K86:K89)*_xlfn.XLOOKUP(E78,Data!A86:A89,Data!M86:M89)*E80/(_xlfn.XLOOKUP(E78,Data!A86:A89,Data!L86:L89)*1000), 0)+IF(F77=\"Omfattas\", _xlfn.XLOOKUP(F79,Data!A28:A34,Data!G28:G34)*_xlfn.XLOOKUP(F78,Data!A86:A89,Data!K86:K89)*_xlfn.XLOOKUP(F78,Data!A86:A89,Data!M86:M89)*F80/(_xlfn.XLOOKUP(F78,Data!A86:A89,Data!L86:L89)*1000), 0))/IF(OR(Enhet_värmevärde=\"MJ/l vid 15° C\",Enhet_värmevärde=\"\"), E9*1000/IF(E5=\"Övriga flytande\", E11,IF(E5=\"Övriga fasta\",E11,_xlfn.XLOOKUP(E5, Data!A52:A67, Data!D52:D67))), E9),\"\")","v":""},"För detaljer kring bakomliggande ekvation, se fliken \"Användarguide\" och \"Fördjupning med ekvationer\"."]
[]
[null,null,null,"Landtransport"]
[null,null,null,"Vägtransport - i Sverige","Vägtransport - utomlands"]
[null,null,"Omfattning"]
[null,null,"Fordonstyp",null,null,null,null,null,"\"Okänt fordon\" motsvarar det alternativ som ger högst utsläpp, dvs lätt lastbil."]
[null,null,"Bränsleslag",null,null,null,null,null,"Bränsleförbrukning för transport beräknas både för ut-och hemresan med valt fordon som lastat respektive olastat enligt nedan. Totala emissioner är summan av ut- och hemresan. Endast beräkning för vald omfattning."]
[null,null,"Transportavstånd [km]",null,null,null,null,{"$f":"IFERROR(IF(D84=\"Omfattas\", _xlfn.XLOOKUP(D86,Data!A8:A47,Data!G8:G47)*_xlfn.XLOOKUP(D85,Data!A91:A95,Data!K91:K95)*(2*_xlfn.XLOOKUP(D85,Data!A91:A95,Data!M91:M95)+_xlfn.XLOOKUP(D85,Data!A91:A95,Data!L91:L95))*D87/(_xlfn.XLOOKUP(D85,Data!A91:A95,Data!L91:L95)*IF(Enhet_värmevärde=\"MJ/l vid 15° C\", E9*1000/IF(E5=\"Övriga flytande\",E11,IF(E5=\"Övriga fasta\", E11,_xlfn.XLOOKUP(E5, Data!A52:A62, Data!D52:D62))), E9)*1000), 0)+IF(E84=\"Omfattas\", _xlfn.XLOOKUP(E86,Data!A8:A47,Data!G8:G47)*_xlfn.XLOOKUP(E85,Data!A91:A95,Data!K91:K95)*(2*_xlfn.XLOOKUP(E85,Data!A91:A95,Data!M91:M95)+_xlfn.XLOOKUP(E85,Data!A91:A95,Data!L91:L95))*E87/(_xlfn.XLOOKUP(E85,Data!A91:A95,Data!L91:L95)*IF(Enhet_värmevärde=\"MJ/l vid 15° C\", E9*1000/IF(E5=\"Övriga flytande\",E11,IF(E5=\"Övriga fasta\", E11,_xlfn.XLOOKUP(E5, Data!A52:A62, Data!D52:D62))), E9)*1000), 0),\"\")","v":0},"För detaljer kring bakomliggande ekvation, se fliken \"Användarguide\" och \"Fördjupning med ekvationer\"."]
[]
[]
[null,null,null,"Resultat utsläpp "]
[]
[null,null,null,"Term","Värde [g CO2eq/MJ]"]
[null,null,null,"Leverantörens tidigare utsläpp",{"$f":"IF(D19=\"Omfattas ej\", \"\", E19)","v":0}]
[null,null,null,"Utvinning eller odling av råvaror (eec)",{"$f":"IF(D20=\"Faktiskt värde\",H48,IF(D20=\"Eget värde\",E20,IF(D20=\"Delnormalvärde\",IF(E4=\"Flytande\",_xlfn.XLOOKUP(E13,_xlfn.VSTACK(Data!A99:A133,Data!A135:A147),_xlfn.VSTACK(Data!N99:N133,Data!N135:N147)),IF(E4=\"Fast\",_xlfn.XLOOKUP(E13,Data!A151:A243,Data!R151:R243),\"\")))*IF(OR(E5=\"ETBE\",E5=\"TAEE\",E5=\"MTBE\"),_xlfn.XLOOKUP(E5,Data!A245:A247,Data!W245:W247),1)))","v":0}]
[null,null,null,"Förändringar i kollager (el)",{"$f":"E27","v":0}]
[null,null,null,"Bearbetning (ep)",{"$f":"IF(D21=\"Faktiskt värde\",H63, IF(D21=\"Eget värde\",E21, IF(D21=\"Delnormalvärde\",IF(E4=\"Flytande\",_xlfn.XLOOKUP(E13,_xlfn.VSTACK(Data!A99:A133,Data!A135:A147),_xlfn.VSTACK(Data!O99:O133,Data!O135:O147)),IF(E4=\"Fast\",_xlfn.XLOOKUP(E13,Data!A151:A243,Data!S151:S243),\"\")))*IF(OR(E5=\"ETBE\",E5=\"TAEE\",E5=\"MTBE\"),_xlfn.XLOOKUP(E5,Data!A245:A247,Data!W245:W247),1)))","v":0}]
[null,null,null,"Transport och distribution (etd)",{"$f":"IF(D22=\"Faktiskt värde\",SUM(H73,H80,H87),IF(D22=\"Eget värde\",E22,IF(D22=\"Delnormalvärde\",IF(E4=\"Flytande\",_xlfn.XLOOKUP(E13,_xlfn.VSTACK(Data!A99:A133,Data!A135:A147),_xlfn.VSTACK(Data!P99:P133,Data!P135:P147)),IF(E4=\"Fast\",_xlfn.XLOOKUP(E13,Data!A151:A243,Data!T151:T243),\"\")))*IF(OR(E5=\"ETBE\",E5=\"TAEE\",E5=\"MTBE\"),_xlfn.XLOOKUP(E5,Data!A245:A247,Data!W245:W247),1)))","v":0}]
[null,null,null,"Användning av bränslet (eu)",{"$f":"IF(\n    AND(cell_Användningsområde<>\"Motordrift\",cell_Användningsområde<>\"\", cell_Omfattas_eu=\"Värde från genomförandeförordningen\"),\n    IF(\n       cell_Bränsletyp=\"Flytande\",\n       Data!G49,\n       IF(\n          cell_Bränsletyp=\"Fast\",\n          Data!G50,\n          0\n         )\n      ),\n    IF(\n       AND(cell_Användningsområde<>\"Motordrift\", cell_Användningsområde<>\"\", cell_Omfattas_eu=\"Eget värde\"),\n       E23,\n       IF(\n          AND(cell_Användningsområde<>\"Motordrift\", cell_Användningsområde<>\"\", cell_Omfattas_eu=\"Delnormalvärde\"),\n          _xlfn.XLOOKUP(cell_Produktionskedja,Data!$A$151:$A$243,Data!$G$151:$G$243),\n          0\n         )\n      )\n    )","v":0},null,null,null,"Klimatpåverkan för användning av bränsle från metan och lustgas, ifall ändamålet inte är motordrift."]
[null,null,null,"Kollager förbättrade jordbruksmetoder (esca)",{"$f":"-E28","v":0}]
[null,null,null,"Avskiljning och lagring av CO2 (eccs)",{"$f":"-E29","v":0}]
[null,null,null,"Avskiljning och ersättning av CO2 (eccr)",{"$f":"-E30","v":0}]
[null,null,null,"Total E",{"$f":"IFERROR(IF(E12=\"\",\"\",IF(E12<>\"Normalvärde\",SUBTOTAL(109,E93:E101),IF(E6=\"Motordrift\", (1-_xlfn.XLOOKUP(E13,_xlfn.VSTACK(Data!A99:A133,Data!A135:A147),_xlfn.VSTACK(Data!Q99:Q133,Data!Q135:Q147)))*Data!X249, \"\"))*IF(E12=\"Normalvärde\",IF(OR(E5=\"ETBE\",E5=\"TAEE\",E5=\"MTBE\"),_xlfn.XLOOKUP(E5,Data!A245:A247,Data!W245:W247),1),1)),\"\")","v":""},null,null,null,"Utsläppen från användning av biodrivmedlet/biobränslet"]
[null,null,null,{"$f":"IF(AND(E6<>\"Motordrift\", E6<>\"\"), IF(Kraftvärme=\"ja\", \"ECh\",  \"Total EC\"), \"Total EC\")","v":"Total EC"},{"$f":"IFERROR(IF(AND(E4=\"Fast\",E12=\"Normalvärde\"),IF(E6=\"Elproduktion\",(1-_xlfn.XLOOKUP(E13,Data!$A$151:$A$243,Data!$V$151:$V$243))*_xlfn.XLOOKUP(E6,Data!$A$250:$A$254,Data!$Z$250:$Z$254),(1-_xlfn.XLOOKUP(E13,Data!$A$151:$A$243,Data!$U$151:$U$243))*_xlfn.XLOOKUP(E6,Data!$A$250:$A$254,Data!$Y$250:$Y$254)),IF(D24=\"Omfattas\",'EC-beräkning'!D46,\"\")),\"\")","v":""},{"$f":"IF(AND(D24=\"Omfattas\",E12<>\"Normalvärde\"),IF( E103=\"\",\"Fyll i fliken EC-beräkning!\",IF(OR('EC-beräkning'!G7<>\"\",'EC-beräkning'!G8<>\"\",'EC-beräkning'!G9<>\"\"),\"Se över indata på fliken EC-beräkning\",\"\")),\"\")","v":"Fyll i fliken EC-beräkning!"},null,null,"Utsläppen från produktion av energi med biobränslet, ej applicerbart vid motordrift"]
[null,null,null,"ECel",{"$f":"IFERROR(IF(Kraftvärme=\"ja\",IF(AND(E4=\"Fast\",E12=\"Normalvärde\"),(1-_xlfn.XLOOKUP(E13,Data!$A$151:$A$243,Data!$V$151:$V$243))*_xlfn.XLOOKUP(E6,Data!$A$250:$A$254,Data!$Z$250:$Z$254),IF(D24=\"Omfattas\",'EC-beräkning'!E46,\"\")),\"\"),\"\")","v":""},{"$f":"IF(AND(D24=\"Omfattas\", E104=\"\",E12<>\"Normalvärde\",Kraftvärme=\"ja\"),\"Fyll i fliken EC-beräkning!\",\"\")","v":""}]
[]
[null,null,null,null,""]
[""]
[]
[]
[]
[]
[]
[]
[null,null,null,null,null,null," "]

{"sheet":"EC-beräkning","index":2,"n_rows":47,"n_cols":7,"rows_kept":47,"cut":false,"hidden":true,"merged":[[3,2,3,3],[6,1,7,1],[8,2,8,3],[19,2,19,3],[26,2,26,3],[18,2,18,3],[14,2,14,3],[15,2,15,3],[48,1,51,4],[32,4,34,5],[10,2,10,3],[11,2,11,3],[6,2,6,3],[7,2,7,3],[20,2,20,3],[21,2,21,3],[22,2,22,3],[37,1,37,3],[38,1,38,3],[32,1,32,3],[33,1,33,3],[34,1,34,3],[27,2,27,3]]}
[null,null,null,null,null,{"$f":"versionsnummer","v":"v1.1"}]
[null,"Växthusgasutsläpp från energiomvandling (EC)",null,null,{"$f":"IF(OR(ISERROR(E15),ISERROR(E16),ISERROR(E23),IF(AND(E19=\"Nej\",E20=\"\"),TRUE,FALSE)),\"Fyll i samtliga gula celler i formuläret\", \"\")","v":"Fyll i samtliga gula celler i formuläret"}]
[null,"Växthusgasutsläpp innan energiomvandling"]
[null,"Växthusgasutsläpp (E)","Utsläpp från bränslepartiet, exklusive slutlig energiomvandling.",null,{"$f":"'Indata och beräkning'!E102","v":""},"g CO2eq/MJbr."]
[]
[null,"Årlig produktion och tillförsel"]
[null,"Värmeproduktion","Mängd producerad värme från pannan (utan RGK).",null,null,"MWh",{"$f":"IF(AND($E$33=\"El\",E7>0),\"Endast elproduktion. Ta bort data för värmeproduktion på denna rad!\",\"\")","v":""}]
[null,null,"Mängd producerad värme från rökgaskondensorn (enbart RGK).",null,null,"MWh",{"$f":"IF(AND($E$33=\"El\",E8>0),\"Endast elproduktion. Ta bort data för värmeproduktion på denna rad!\",\"\")","v":""}]
[null,"Elproduktion","Mängd producerad el från pannan.",null,null,"MWh",{"$f":"IF(AND($E$33=\"Värme\",E9>0),\"Endast värmeproduktion. Ta bort data för elproduktion på denna rad!\",\"\")","v":""}]
[null,"Total produktion","Mängd producerad energi från pannan.",null,{"$f":"SUM(E7:E9)","v":0}]
[null,"Tillfört bränsle (totalt)","Mängd tillfört bränsle (fossilt och bio) till pannan.",null,null,"MWh"]
[null,"Tillfört bränsle (parti)","Mängd tillfört bränsle från det specifika partiet.",null,{"$f":"'Indata och beräkning'!E7*IF('Indata och beräkning'!E8=\"MWh\",1,IF('Indata och beräkning'!E8=\"kg\",IF('Indata och beräkning'!E5=\"Övriga flytande\",'Indata och beräkning'!E10,_xlfn.XLOOKUP('Indata och beräkning'!E5,Data!A52:A67, Data!F52:F67))/3600,IF('Indata och beräkning'!E5=\"Övriga flytande\",1000/'Indata och beräkning'!E11*'Indata och beräkning'!E10/3600,_xlfn.XLOOKUP('Indata och beräkning'!E5, Data!A52:A62, Data!E52:E62)/3600*1000/_xlfn.XLOOKUP('Indata och beräkning'!E5,Data!A52:A67, Data!D52:D67))))","v":{"$error":"#N/A"}},"MWh"]
[]
[null,"Verkningsgrad"]
[null,"ⴄh","Värmeverkningsgrad (direkt), beräknad på årsbasis.",null,{"$f":"(E7+E8)/E11","v":{"$error":"#DIV/0!"}},null,{"$f":"IFERROR(IF(E15>1, \"Verkningsgraden överstiger 100 %, detta kan vara möjligt om ni använder er av RGK, annars se över er data.\",\"\"),\"\")","v":""}]
[null,"ⴄel","Elverkningsgrad (direkt), beräknad på årsbasis.",null,{"$f":"E9/E11","v":{"$error":"#DIV/0!"}},null,{"$f":"IFERROR(IF(E16>1, \"Verkningsgraden överstiger 100 %, detta kan vara möjligt om ni använder er av RGK, annars se över er data.\",\"\"),\"\")","v":""}]
[]
[null,"Beräkning av exergin i el och värme"]
[null,null,"Värmen är överskottsvärme för uppvärmning av byggnader och understiger 150 °C."]
[null,"Th","Temperatur på nyttiggjord värme vid leveranspunkten °C.",null,null,{"$f":"IF(E19=\"Ja\",\"C°\",\"\")","v":""}]
[null,"Th","Absolut temperatur på nyttiggjord värme vid leveranspunkten (Kelvin)",null,{"$f":"IF(E19=\"Nej\",E20+273.15,\"\")","v":""},{"$f":"IF(E19=\"Nej\",\"K\",\"\")","v":""}]
[null,"T0","Omgivningstemperatur (konstant)",null,{"$f":"IF(E19=\"Nej\",273.15,\"\")","v":""},{"$f":"IF(E19=\"Nej\",\"K\",\"\")","v":""}]
[null,"Ch","Carnoteffektiviteten för värme",null,{"$f":"IF(E19=\"Ja\",0.3546,(E21-E22)/E21)","v":{"$error":"#VALUE!"}}]
[]
[]
[]
[null,"Cel"]
[null,"Cel","Exergi i elektricitet",null,1]
[]
[null,"Ch"]
[]
[null,"Typ av produktion",null,null,null,"Välj den typ av energianläggning (panna) ni har:"]
[null,"Energianläggning som enbart producerar värme - välj \"Värme\"",null,null,{"$f":"IF(OR('Indata och beräkning'!E6=\"Värme- Kylaproduktion\",'Indata och beräkning'!E6=\"Värme- Kylaproduktion (fysisk ersättning av kol)\"),\"Värme\", IF('Indata och beräkning'!E6=\"Elproduktion\",\"El\", IF(OR('Indata och beräkning'!E6=\"Kraftvärmeproduktion\",'Indata och beräkning'!E6=\"Kraftvärmeproduktion (fysisk ersättning av kol)\"),\"Kraftvärme\",\"\")))","v":""}]
[null,"Energianläggning som enbart producerar el - välj \"El\""]
[null,"Energianläggning som producerar värme och el - välj \"Kraftvärme\""]
[]
[null,"Fossil motsvarighet",null,null,null,"Välj den fossila motsvarigheten som ni träffas av."]
[null,"Fossil motsvarighet, värme",null,null,{"$f":"IF(OR('Indata och beräkning'!E6=\"Värme- Kylaproduktion\", 'Indata och beräkning'!E6=\"Kraftvärmeproduktion\"), 80, IF(OR('Indata och beräkning'!E6=\"Värme- Kylaproduktion (fysisk ersättning av kol)\", 'Indata och beräkning'!E6=\"Kraftvärmeproduktion (fysisk ersättning av kol)\"), 124, IF('Indata och beräkning'!E6=\"Elproduktion\", \"Ej tillämpligt\", \"\")))","v":""},{"$f":"IF(E38=\"Ej tillämpligt\",\"\",\"g CO2eq/MJ\")","v":"g CO2eq/MJ"}]
[null,"Fossil motsvarighet, el",null,null,{"$f":"IF(OR('Indata och beräkning'!E6=\"Värme- Kylaproduktion\", 'Indata och beräkning'!E6=\"Värme- Kylaproduktion (fysisk ersättning av kol)\"), \"Ej tillämpligt\", IF(OR('Indata och beräkning'!E6=\"Elproduktion\",'Indata och beräkning'!E6=\"Kraftvärmeproduktion\", 'Indata och beräkning'!E6=\"Kraftvärmeproduktion (fysisk ersättning av kol)\"), 183, \"\"))","v":""},{"$f":"IF(E39=\"Ej tillämpligt\",\"\",\"g CO2eq/MJ\")","v":"g CO2eq/MJ"}]
[]
[null,"Resultat"]
[]
[null,null,null,{"$f":"IF(E33=\"Kraftvärme\",\"Parti h\",\"Parti\")","v":"Parti"},{"$f":"IF(E33=\"Kraftvärme\",\"Parti el\",\"\")","v":""}]
[null,null,"Partiets storlek (%)",{"$f":"IF(Kraftvärme=\"ja\",($E$7+$E$8)/(E10),1)","v":1},{"$f":"IFERROR(IF(E33=\"Kraftvärme\",$E$9/($E$7+$E$8+$E$9),\"\"),\"\")","v":""}]
[null,null,"Mängd",{"$f":"IFERROR($D$44*$E$12,\"\")","v":""},{"$f":"IFERROR(IF(E33=\"Kraftvärme\",E44*$E$12,\"MWh\"),\"\")","v":"MWh"},{"$f":"IF(E33=\"Kraftvärme\",\"MWh\",\"\")","v":""}]
[null,null,"Växthusgasutsläpp EC",{"$f":"IFERROR(IF(E33=\"Värme\",$E$4/MIN(E15,1),IF(E33=\"El\",$E$4/MIN(E16,1),IF(E33=\"Kraftvärme\",((E4/MIN(E15,1))*((E23*MIN(E15,1))/(E28*MIN(E16,1)+E23*MIN(E15,1)))),\"\"))),\"\")","v":""},{"$f":"IFERROR(IF(E33=\"Kraftvärme\",((E4/MIN(1,E16))*((E28*MIN(1,E16))/(E28*MIN(1,E16)+E23*MIN(1,E15)))),\"g CO2eq/MJ\"),\"\")","v":"g CO2eq/MJ"},{"$f":"IF(E33=\"Kraftvärme\",\"g CO2eq/MJ\",\"\")","v":""}]
[null,null,"Utsläppsminskning",{"$f":"IFERROR(IF(E33=\"El\",1-D46/E39,1-D46/E38),\"\")","v":""},{"$f":"IFERROR(IF(E33=\"Kraftvärme\",1-E46/E39,\"\"),\"\")","v":""}]

{"sheet":"Resultat","index":3,"n_rows":7,"n_cols":8,"rows_kept":7,"cut":false,"hidden":false,"merged":[]}
[null,null,null,null,null,null,{"$f":"versionsnummer","v":"v1.1"}]
[]
[]
[]
["Bränsletyp","Bränslekategori","Användningsområde","Metod för bestämmande av växthusgasutsläpp","Produktionskedja","Växthusgasutsläpp E [g CO2eq/MJ]","Växthusgasutsläpp EC [g CO2eq/MJ]","Ta ej bort"]
[{"$f":"IF(ISBLANK('Indata och beräkning'!E4),\"\", 'Indata och beräkning'!E4)","v":""},{"$f":"IF(ISBLANK('Indata och beräkning'!E5),\"\",'Indata och beräkning'!E5)","v":""},{"$f":"IF(OR('Indata och beräkning'!E6=\"Kraftvärmeproduktion\", 'Indata och beräkning'!E6=\"Kraftvärmeproduktion (fysisk ersättning av kol)\"), \"Kraftvärmeproduktion (värme)\", 'Indata och beräkning'!E6)","v":0},{"$f":"IF(ISBLANK('Indata och beräkning'!E12),\"\",'Indata och beräkning'!E12)","v":""},{"$f":"IF('Indata och beräkning'!E12 <> \"Faktiska värden\", IF(ISBLANK('Indata och beräkning'!E13),\"\",'Indata och beräkning'!E13), \"\")","v":""},{"$f":"IF('Indata och beräkning'!E6 <> \"\", 'Indata och beräkning'!E102, \"\")","v":""},{"$f":"IFERROR('Indata och beräkning'!E103, \"\")","v":""}]
[{"$f":"A6","v":""},{"$f":"B6","v":""},{"$f":"IF(OR('Indata och beräkning'!E6=\"Kraftvärmeproduktion\", 'Indata och beräkning'!E6=\"Kraftvärmeproduktion (fysisk ersättning av kol)\"), \"Kraftvärmeproduktion (el)\", \"\")","v":""},{"$f":"IF(OR('Indata och beräkning'!E6=\"Kraftvärmeproduktion\", 'Indata och beräkning'!E6=\"Kraftvärmeproduktion (fysisk ersättning av kol)\"), D6, \"\")","v":""},{"$f":"E6","v":""},{"$f":"F6","v":""},{"$f":"IFERROR('Indata och beräkning'!E104, \"\")","v":""},"Ta ej bort"]

{"sheet":"Data","index":4,"n_rows":357,"n_cols":28,"rows_kept":357,"cut":false,"hidden":false,"merged":[[1,12,2,12],[1,22,2,22],[1,6,2,6],[1,7,2,7],[1,8,2,8],[1,9,2,9],[1,10,2,10],[150,27,242,27],[130,27,131,27],[1,16,2,16],[1,13,2,13],[1,14,2,14],[1,15,2,15],[98,27,103,27],[104,27,107,27],[108,27,111,27],[116,27,117,27],[123,27,124,27],[1,27,2,27],[36,27,45,27],[76,26,84,26],[27,26,30,26],[1,1,2,1],[1,2,2,2],[1,3,2,3],[248,26,253,26],[244,26,246,26],[1,20,1,21],[1,19,2,19],[1,18,2,18],[1,17,2,17],[1,23,1,25],[1,26,2,26],[36,26,45,26],[51,26,61,26],[1,4,2,4],[1,5,2,5],[1,11,2,11]]}
[null,null,null,null,null,null,null,null,null,null,null,null,null,null,null,null,null,null,null,null,null,null,null,null,null,null,null,{"$f":"versionsnummer","v":"v1.1"}]
[null,"GWP-faktor [kg CO2eq/kg CH4]","GWP-faktor [kg CO2eq/kg N2O]","Densitet [kg/m3]","Värmevärde, LHV [MJ/l]","Värmevärde, LHV [MJ/kg]","Emissionsfaktor [g CO2eq/MJ]","Energiförlust för lagring [MJ/mån]","Volym [m3]","Avstånd [km]","Drivmedelseffektivitet [MJ/ton/km]","Lastvikt [ton]","Deplacement [ton]","eec inklusive N2O-utsläpp från mark [g CO2eq/MJ]","ep [g CO2eq/MJ]","etd [g CO2eq/MJ]","Normalvärde för  minskningen av växthusgasutsläpp [%/100]","Odling","Bearbetning","Transport och distribution","Normalvärde för  minskningen av växthusgasutsläpp [%/100]",null,"Förnybara andelar [%/100]","Fossil motsvarighet, EF respektive ECf [CO2eq/MJ]",null,null,"Källa","Kommentar"]
["Benämning",null,null,null,null,null,null,null,null,null,null,null,null,null,null,null,null,null,null,null,"Värme","El",null,"E","ECh","ECel"]
["Egenskaper bränslen"]
["GWP-faktor",25,298,null,null,null,null,null,null,null,null,null,null,null,null,null,null,null,null,null,null,null,null,null,null,null,"Naturvårdsverket (2023), Klimatklivet - Vägledning om beräkning av utsläppsminskning, https://www.naturvardsverket.se/4a6ac7/globalassets/amnen/klimat/klimatklivet/vagledning-berakna-utslappsminskning-230915.pdf [Åtkomstdatum 19 september 2024]"]
["Avsnitt i modell"]
["Bearbetning (ep), Transport och distribution (etd) - landtransport"]
["Nordisk elmix",null,null,null,null,null,{"$f":"90.4/3.6","v":25.111111111111111},null,null,null,null,null,null,null,null,null,null,null,null,null,null,null,null,null,null,null,"Sandgren, A. & Nilsson, J. (2021) SMED Rapport Nr 4 2021 Emissionsfaktor för nordisk elmix med hänsyn till import och export, https://naturvardsverket.diva-portal.org/smash/get/diva2:1540012/FULLTEXT01.pdf, [Åtkomstdatum: 13 december 2023]"]
["Svensk elmix",null,null,null,null,null,{"$f":"(26)/(3.6)","v":7.2222222222222223},null,null,null,null,null,null,null,null,null,null,null,null,null,null,null,null,null,null,null,"Kommissionens genomförandeförordning (EU) 2022/996 av den 14 juni 2022 om regler för att verifiera hållbarhet och kriterier för minskade växthusgasutsläpp och kriterier för låg risk för indirekt ändring av markanvändning , bilaga IX","Koldioxidintensitet för producerad och använd el i Sverige 2019. Genomsnitt för använd el från låg, mellan och högspänning."]
["EU-elmix",null,null,null,null,null,{"$f":"308/3.6","v":85.555555555555557},null,null,null,null,null,null,null,null,null,null,null,null,null,null,null,null,null,null,null,"Kommissionens genomförandeförordning (EU) 2022/996 av den 14 juni 2022 om regler för att verifiera hållbarhet och kriterier för minskade växthusgasutsläpp och kriterier för låg risk för indirekt ändring av markanvändning , bilaga IX","EU-27: Koldioxidintensitet för producerad och använd el i EU 2019. Genomsnitt för använd el från låg, mellan och högspänning. Värdet skiljer sig mkt från JRCs data från 2014  som är  136-150 g CO2ekv/MJel beroende på HV, MV eller LV. "]
["Bearbetning (ep)"]
["Stenkol",null,null,null,null,null,112.32,null,null,null,null,null,null,null,null,null,null,null,null,null,null,null,null,null,null,null,"Kommissionens genomförandeförordning (EU) 2022/996 av den 14 juni 2022 om regler för att verifiera hållbarhet och kriterier för minskade växthusgasutsläpp och kriterier för låg risk för indirekt ändring av markanvändning , bilaga IX"]
["Eldningsolja",null,null,null,null,null,94.2,null,null,null,null,null,null,null,null,null,null,null,null,null,null,null,null,null,null,null,"Kommissionens genomförandeförordning (EU) 2022/996 av den 14 juni 2022 om regler för att verifiera hållbarhet och kriterier för minskade växthusgasutsläpp och kriterier för låg risk för indirekt ändring av markanvändning , bilaga IX ","Tung eldningsolja."]
["Naturgas",null,null,null,null,null,66,null,null,null,null,null,null,null,null,null,null,null,null,null,null,null,null,null,null,null,"Kommissionens genomförandeförordning (EU) 2022/996 av den 14 juni 2022 om regler för att verifiera hållbarhet och kriterier för minskade växthusgasutsläpp och kriterier för låg risk för indirekt ändring av markanvändning , bilaga IX ","Naturgas (EU-mix ) tidigare baserat på naturgas (Västeuropa)."]
["Torv",null,null,null,null,null,{"$f":"106+B5*0.001+C5*0.0015","v":106.47200000000001},null,null,null,null,null,null,null,null,null,null,null,null,null,null,null,null,null,null,null,"Bilaga till kommissionens delegerade förordning (EU) om komplettering av Europaparlamentets och rådets direktiv (EU) 2018/2001 genom fastställande av ett minimitröskelvärde för minskningen av växthusgasutsläpp från återvunna kolbaserade bränslen och genom specificering av en metod för bedömningen av minskningen av växthusgasutsläpp från förnybara flytande och gasformiga drivmedel av icke-biologiskt ursprung och från återvunna kolbaserade bränslen ","Utsläppsfaktorer tidigare led för torv är 0."]
["Biobränsle - Icke förädlade",null,null,null,null,null,2.1566517157678313,null,null,null,null,null,null,null,null,null,null,null,null,null,null,null,null,null,null,null,"Gode, J. et el, (2011), Miljöfaktaboken 2011 - Uppskattade emissionsfaktorer för bränslen, el, värme och transporter, Värmeforsk, https://energiforskmedia.blob.core.windows.net/media/17907/miljoefaktaboken-2011-vaermeforskrapport-1183.pdf [Åtkomstdatum 13 december 2023]","GROT."]
["Biobränslen - Förädlade",null,null,null,null,null,0.25379999999999997,null,null,null,null,null,null,null,null,null,null,null,null,null,null,null,null,null,null,null,"Kommissionens genomförandeförordning (EU) 2022/996 av den 14 juni 2022 om regler för att verifiera hållbarhet och kriterier för minskade växthusgasutsläpp och kriterier för låg risk för indirekt ändring av markanvändning , bilaga IX ","Pellets."]
["Verksamhetsavfall",null,null,null,null,null,26.892775134158423,null,null,null,null,null,null,null,null,null,null,null,null,null,null,null,null,null,null,null,"Gode, J. et el, (2011), Miljöfaktaboken 2011 - Uppskattade emissionsfaktorer för bränslen, el, värme och transporter, Värmeforsk, https://energiforskmedia.blob.core.windows.net/media/17907/miljoefaktaboken-2011-vaermeforskrapport-1183.pdf [Åtkomstdatum 13 december 2023]","PTP = Papper, trä, plast. Uppskattade emissionsfaktorer för bränslen, el, värme och transporter."]
["Hushållsavfall",null,null,null,null,null,40.146999999999998,null,null,null,null,null,null,null,null,null,null,null,null,null,null,null,null,null,null,null,"Naturvårdsverket (2024), Emissionsfaktorer och värmevärden submission 2024, https://www.naturvardsverket.se/490983/contentassets/e5656a81bce94bf1bdb832f5cf998daf/ef-bilaga-klimat2.xlsx [Åtkomstdatum: 19 september 2024]","NVV 2021 - 40.147 gCO2 ekv /MJ för fjärrvärme el produktion. "]
["Gasol",null,null,null,null,null,65.154799999999994,null,null,null,null,null,null,null,null,null,null,null,null,null,null,null,null,null,null,null,"Naturvårdsverket (2024), Emissionsfaktorer och värmevärden submission 2024, https://www.naturvardsverket.se/490983/contentassets/e5656a81bce94bf1bdb832f5cf998daf/ef-bilaga-klimat2.xlsx [Åtkomstdatum: 19 september 2024]","Stationär förbränning av gasol (propan och butan)."]
["Transport och distribution (etd) - lagring"]
["Fjärrvärme - Sverigemedel",null,null,null,null,null,{"$f":"(70.1+59.2+53.7+52+51.4)/5/3.6","v":15.91111111111111},null,null,null,null,null,null,null,null,null,null,null,null,null,null,null,null,null,null,null,"Energiföretagen Sverige (2024), Miljövärdering av fjärrvärme, https://www.energiforetagen.se/statistik/fjarrvarmestatistik/miljovardering-av-fjarrvarme/ [Åtkomstdatum: 19 september 2024]","Fjärrvärme, genomsnittliga miljövärden för Sverige. Oljepanna antas för \"Okänt\"."]
["Eldningsolja",null,null,null,null,null,{"$f":"77.4+0.003*B5+0.0006*C5+11.6","v":89.253799999999998},null,null,null,null,null,null,null,null,null,null,null,null,null,null,null,null,null,null,null,"Bilaga till kommissionens delegerade förordning (EU) om komplettering av Europaparlamentets och rådets direktiv (EU) 2018/2001 genom fastställande av ett minimitröskelvärde för minskningen av växthusgasutsläpp från återvunna kolbaserade bränslen och genom specificering av en metod för bedömningen av minskningen av växthusgasutsläpp från förnybara flytande och gasformiga drivmedel av icke-biologiskt ursprung och från återvunna kolbaserade bränslen ","Stationär förbränning av eldningsolja (tidigare oljepanna). Inkl. standardutsläppsfaktor för stationär förbränning, samt utsläppsfaktor för bränsle i tidigare led. 77.4 g CO2/kg, 0.003 g CH4/kg, 0.0006 g NO2/kg."]
["Spillvärme",null,null,null,null,null,0,null,null,null,null,null,null,null,null,null,null,null,null,null,null,null,null,null,null,null,"Erlandsson, M. (2018), Byggnaders klimatpåverkan, timme för timme - idag och i framtiden, https://www.ivl.se/download/18.694ca0617a1de98f472d4d/1628414616722/FULLTEXT01.pdf [Åtkomstdatum 20 december 2023]","Enligt källan ingen klimatpåverkan pga det rör sig om spill."]
["Biobränsle",null,null,null,null,null,{"$f":"0.03*B5+C5*0.004+0.7","v":2.6419999999999999},null,null,null,null,null,null,null,null,null,null,null,null,null,null,null,null,null,null,null,"Bilaga till kommissionens delegerade förordning (EU) om komplettering av Europaparlamentets och rådets direktiv (EU) 2018/2001 genom fastställande av ett minimitröskelvärde för minskningen av växthusgasutsläpp från återvunna kolbaserade bränslen och genom specificering av en metod för bedömningen av minskningen av växthusgasutsläpp från förnybara flytande och gasformiga drivmedel av icke-biologiskt ursprung och från återvunna kolbaserade bränslen ","Fasta biobränslen (tidigare Fjärrvärme, biokraftvärme)."]
["Okänt",null,null,null,null,null,{"$f":"G23","v":89.253799999999998},null,null,null,null,null,null,null,null,null,null,null,null,null,null,null,null,null,null,null,null,"Antas som eldningsolja. "]
["Transport och distribution (etd) - sjötransport"]
["Eo1 (antas motsvara MGO, marin dieselolja)",null,null,null,null,{"$f":"0.0427*1000","v":42.7},90.6,null,null,null,null,null,null,null,null,null,null,null,null,null,null,null,null,null,null,null,"Europaparlamentets och rådets förordning (EU) 2023/1805 av den 13 september 2023 om användning av förnybara och koldioxidsnåla bränslen för sjötransport och om ändring av direktiv 2009/16/EG","MDO, MGO. Föreslaget standardvärde (ännu inte beslutade, EP&C, 2021). Värmevärde från ursprungskälla."]
["Eo2-6 (HFO)",null,null,null,null,{"$f":"0.0405*1000","v":40.5},91.6,null,null,null,null,null,null,null,null,null,null,null,null,null,null,null,null,null,null,null,null,"HFO. Föreslaget standardvärde (ännu inte beslutade, EP&C, 2021). Värmevärde från ursprungskälla."]
["Diesel (MDO)",null,null,null,null,{"$f":"0.0427*1000","v":42.7},90.6,null,null,null,null,null,null,null,null,null,null,null,null,null,null,null,null,null,null,null,null,"MDO. Föreslaget standardvärde (ännu inte beslutade, EP&C, 2021). Värmevärde från ursprungskälla."]
["LNG",null,null,null,null,{"$f":"0.0491*1000","v":49.099999999999994},75.2,null,null,null,null,null,null,null,null,null,null,null,null,null,null,null,null,null,null,null,null,"LNG. Föreslaget standardvärde (ännu inte beslutade, EP&C, 2021). Värmevärde från ursprungskälla."]
["Biodiesel (antaget HVO)",null,null,null,null,44,7.1,null,null,null,null,null,null,null,null,null,null,null,null,null,null,null,null,null,null,null,"Energimyndigheten (2023), Drivmedel 2022 - Resultat och analys av rapportering enligt regelverken för hållbarhetskriterier, reduktionsplikt och drivmedelslag (ER 2023:19), https://energimyndigheten.a-w2m.se/Arkitektkopia/ViewTemplate?tid=f65b4be60c404a1c85a6e8c772e31946 [Åtkomstdatum: 19 september 2024]","Biodiesel i form av HVO. Rapporten publiceras varje år, vid uppdatera emissionsfaktor vid förändring. "]
["LNG/LBG (antaget biogas)",null,null,null,null,50,4.9000000000000004,null,null,null,null,null,null,null,null,null,null,null,null,null,null,null,null,null,null,null,"Energimyndigheten (2023), Drivmedel 2022 - Resultat och analys av rapportering enligt regelverken för hållbarhetskriterier, reduktionsplikt och drivmedelslag (ER 2023:19), https://energimyndigheten.a-w2m.se/Arkitektkopia/ViewTemplate?tid=f65b4be60c404a1c85a6e8c772e31946 [Åtkomstdatum: 19 september 2024]","Biogas i flytande form. Rapporten publiceras varje år, vid uppdatera emissionsfaktor vid förändring. "]
["Okänt",null,null,null,null,null,{"$f":"G29*1.1","v":100.76},null,null,null,null,null,null,null,null,null,null,null,null,null,null,null,null,null,null,null,null,"Emissionsfaktor: Konservativt värde 10 % högre än HFO."]
["Transport och distribution (etd) - landtransport"]
["Diesel (svenskt medelvärde)",null,null,null,null,null,{"$f":"95.1*0.94","v":89.393999999999991},null,null,null,null,null,null,null,null,null,null,null,null,null,null,null,null,null,null,null,"Energimyndigheten (2021), Vägledning om drivmedelslagen (2021:3), https://energimyndigheten.a-w2m.se/Arkitektkopia/ViewTemplate?tid=06a54135eba340e8b3f1f64b22714ceb [Åtkomstdatum: 19 september 2024]","Emissionsfaktor gäller från 2024. 95.1 g CO2eq/MJ enligt vägledningen och motsvarande 6 % reduktionsplikt. "]
["Bensin MK1 ",null,null,null,null,null,85.5,null,null,null,null,null,null,null,null,null,null,null,null,null,null,null,null,null,null,null,"Energimyndigheten (2023), Drivmedel 2022 - Resultat och analys av rapportering enligt regelverken för hållbarhetskriterier, reduktionsplikt och drivmedelslag (ER 2023:19), https://energimyndigheten.a-w2m.se/Arkitektkopia/ViewTemplate?tid=f65b4be60c404a1c85a6e8c772e31946 [Åtkomstdatum: 19 september 2024]","Rapporten publiceras varje år, vid uppdatera emissionsfaktor vid förändring. OBS nationella värden. "]
["Diesel MK1",null,null,null,null,null,66.7]
["Diesel MK3",null,null,null,null,null,77.400000000000006]
["HVO100",null,null,null,null,null,10.5]
["FAME (B100)",null,null,null,null,null,33.299999999999997]
["Alkylatbensin",null,null,null,null,null,93.3]
["E85",null,null,null,null,null,49.6]
["ED95",null,null,null,null,null,20.2]
["Fordonsgas",null,null,null,null,null,2.2999999999999998]
["LNG/LBG",null,null,null,null,null,10.5]
["Okänt",null,null,null,null,null,{"$f":"89.4*1.1","v":98.340000000000018},null,null,null,null,null,null,null,null,null,null,null,null,null,null,null,null,null,null,null,null,"Högsta emissionsfaktorn bland bränslen för landtransport antas, dvs diesel (svensk medelvärde). 10% påslag."]
["Användning av bränslet (eu)"]
["Flytande bränslen",null,null,null,null,null,0.14000000000000001,null,null,null,null,null,null,null,null,null,null,null,null,null,null,null,null,null,null,null,"Kommissionens genomförandeförordning (EU) 2022/996 av den 14 juni 2022 om regler för att verifiera hållbarhet och kriterier för minskade växthusgasutsläpp och kriterier för låg risk för indirekt ändring av markanvändning ","Tabell 7, värde för bioolja från 2022/996."]
["Fasta bränslen",null,null,null,null,null,0.4,null,null,null,null,null,null,null,null,null,null,null,null,null,null,null,null,null,null,null,"Kommissionens genomförandeförordning (EU) 2022/996 av den 14 juni 2022 om regler för att verifiera hållbarhet och kriterier för minskade växthusgasutsläpp och kriterier för låg risk för indirekt ändring av markanvändning ","Tabell 7, värde för primary solid biofuels från 2022/996."]
["Biobränslen,vätskor"]
["Biodiesel",null,null,893,33.5,37.5,null,null,null,null,null,null,null,null,null,null,null,null,null,null,null,null,null,null,null,null,"Europaparlamentets och rådets direktiv (EU) 2018/2001 av den 11 december 2018 om främjande av användningen av energi från förnybara energikällor (omarbetning) ","Genomsnitt FAME och FAEE."]
["Butanol",null,null,818.18181818181824,27,33,null,null,null,null,null,null,null,null,null,null,null,null,null,null,null,null,null,null,null,null,null,"Från förnybara källor."]
["Etanol",null,null,777.77777777777783,21,27,null,null,null,null,null,null,null,null,null,null,null,null,null,null,null,null,null,null,null,null,null,"Från förnybara källor."]
["ETBE",null,null,750,27,36,null,null,null,null,null,null,null,null,null,null,null,null,null,null,null,null,null,null,null,null,null,"Varav 37 % från förnybara energikällor."]
["Bensin (Fischer-Tropsch)",null,null,750,33,44,null,null,null,null,null,null,null,null,null,null,null,null,null,null,null,null,null,null,null,null,null,"Bensin (Fischer-Tropsch) (ett syntetiskt kolväte eller en blandning av syntetiska kolväten som framställs från biomassa, att användas som ersättning för bensin)."]
["Diesel (Fischer-Tropsch)",null,null,772.72727272727275,34,44,null,null,null,null,null,null,null,null,null,null,null,null,null,null,null,null,null,null,null,null,null,"Diesel (Fischer-Tropsch) (ett syntetiskt kolväte eller en blandning av syntetiska kolväten, att användas som ersättning för diesel)."]
["Metanol",null,null,800,16,20,null,null,null,null,null,null,null,null,null,null,null,null,null,null,null,null,null,null,null,null,null,"Från förnybara källor."]
["MTBE",null,null,742.85714285714289,26,35,null,null,null,null,null,null,null,null,null,null,null,null,null,null,null,null,null,null,null,null,null,"Varav 22 % från förnybara energikällor."]
["Ren vegetabilisk olja",null,null,918.91891891891896,34,37,null,null,null,null,null,null,null,null,null,null,null,null,null,null,null,null,null,null,null,null,null,"Olja som framställs av oljeväxter genom pressning, extraktion eller liknande metoder. Oraffinerad eller raffinerad men kemiskt oförändrad."]
["TAEE",null,null,763.1578947368422,29,38,null,null,null,null,null,null,null,null,null,null,null,null,null,null,null,null,null,null,null,null,null,"Varav 29 % från förnybara energikällor."]
["Vätebehandlad vegetabilisk olja",null,null,720,32,44.5,null,null,null,null,null,null,null,null,null,null,null,null,null,null,null,null,null,null,null,null,null,"Vätebehandlad olja  - genomsnitt för diesel och bensin."]
["Biobränslen, fasta"]
["Bark",null,null,400,null,5.58,null,null,null,null,null,null,null,null,null,null,null,null,null,null,null,null,null,null,null,null,"Ringman, M. (1995), Fakta Skog - Trädbränslesortiment - definitioner och egenskaper, https://www.slu.se/globalassets/ew/ew-centrala/forskn/popvet-dok/faktaskog/faktaskog95/4s95-05.pdf [Åtkomstdatum 20 december 2023]","Bark från barrved, VMR-kod 85. Densitet: Rå bulkdensitet  kg/m3s (kg ved per m3 skäppmått). MJ/kg = MWh/kg*3.6."]
["Briketter/pellets",null,null,650,null,19,null,null,null,null,null,null,null,null,null,null,null,null,null,null,null,null,null,null,null,null,"Kommissionens genomförandeförordning (EU) 2022/996 av den 14 juni 2022 om regler för att verifiera hållbarhet och kriterier för minskade växthusgasutsläpp och kriterier för låg risk för indirekt ändring av markanvändning , bilaga IX ","Gissningsvis rå bulkdensitet."]
["Flis",null,null,155,null,19,null,null,null,null,null,null,null,null,null,null,null,null,null,null,null,null,null,null,null,null,"Kommissionens genomförandeförordning (EU) 2022/996 av den 14 juni 2022 om regler för att verifiera hållbarhet och kriterier för minskade växthusgasutsläpp och kriterier för låg risk för indirekt ändring av markanvändning , bilaga IX "]
["Sågspån",null,null,350,null,19,null,null,null,null,null,null,null,null,null,null,null,null,null,null,null,null,null,null,null,null,"Värmevärde [MJ/kg]: Kommissionens genomförandeförordning (EU) 2022/996 av den 14 juni 2022 om regler för att verifiera hållbarhet och kriterier för minskade växthusgasutsläpp och kriterier för låg risk för indirekt ändring av markanvändning . Densitet [kg/m3]: Ringman, M. (1995), Fakta Skog - Trädbränslesortiment - definitioner och egenskaper, https://www.slu.se/globalassets/ew/ew-centrala/forskn/popvet-dok/faktaskog/faktaskog95/4s95-05.pdf [Åtkomstdatum 20 december 2023]","Densitet: Rå bulkdensitet. Värmevärde: =1,9*3600=6840 MJ/ton, sågspån med fukthalt 57 %. "]
["Övriga data - Transport och distribution (etd)"]
["Lagring"]
["Cisterntyp"]
["Liten (2000 m3)",null,null,null,null,null,null,32371.488000000001,2011,null,null,null,null,null,null,null,null,null,null,null,null,null,null,null,null,null,null,"Liten cistern [ca 2000 m3], Sverige"]
["Medelstor (9000 m3)",null,null,null,null,null,null,86312.044800000003,9048,null,null,null,null,null,null,null,null,null,null,null,null,null,null,null,null,null,null,"Medelstor cistern [ca 9000 m3], Sverige"]
["Stor (30000 m3)",null,null,null,null,null,null,194300.46720000001,30054,null,null,null,null,null,null,null,null,null,null,null,null,null,null,null,null,null,null,"Stor cistern [ca 30000 m3], Sverige"]
["Okänd",null,null,null,null,null,null,32371.49,2011,null,null,null,null,null,null,null,null,null,null,null,null,null,null,null,null,null,null,"Okänd cistern, tempererat klimat [20 grader C]. Liten cistern antas."]
["Sjötransport"]
["Standardvärde transportsträcka \"Från raffinering/uppkomst till lagringsplats\" och \"Från hamn till lagringen vid hamn i Sverige\" [km]",null,null,null,null,null,null,null,null,500]
["Maximalt värde transportsträcka \"Från raffinering/uppkomst till lagringsplats\" och \"Från hamn till lagringen vid hamn i Sverige\" [km]",null,null,null,null,null,null,null,null,null,null,null,null,null,null,null,null,null,null,null,null,null,null,null,null,null,"Searates, (2024), Find the best Freight Quote, https://www.searates.com/ [Åtkomstdatum 19 september 2024]","Maximala möjliga sträckan sjövägen inom Sverige."]
["Rutt: Strömstad-Piteå",null,null,null,null,null,null,null,null,1834]
["Transportsträcka - \"Från lagringsplats utomlands till hamn i Sverige\""]
["Rutt: Sydamerika-Sverige",null,null,null,null,null,null,null,null,{"$f":"4555*1.852+1431.6","v":9867.4600000000009}]
["Rutt: Nordamerika-Sverige",null,null,null,null,null,null,null,null,{"$f":"3275*1.852+1431.6","v":7496.9}]
["Rutt: Asien-Sverige",null,null,null,null,null,null,null,null,{"$f":"7982*1.852+1431.6","v":16214.264000000001}]
["Rutt: Brasilien-Sverige",null,null,null,null,null,null,null,null,{"$f":"5423*1.852+1431.6","v":11474.996000000001}]
["Rutt: Afrika-Sverige",null,null,null,null,null,null,null,null,{"$f":"6142*1.852+1431.6","v":12806.584000000001}]
["Rutt: USA västkust-Sverige",null,null,null,null,null,null,null,null,{"$f":"3927*1.852+1431.6","v":8704.4040000000005}]
["Bulkfartyg, litet",null,null,null,null,null,null,null,null,null,{"$f":"AVERAGE(K87:K88)*2.5","v":0.875},8000,13000,null,null,null,null,null,null,null,null,null,null,null,null,null,"Drivmedelseffektivitet [MJ/ton/km]: Johansson, M., (2021), Klimat och miljöeffekter av att flytta godstransporter från väg, VTI, http://vti.diva-portal.org/smash/get/diva2:1569889/FULLTEXT01 [Åtkomstdatum: 20 december 2023]; Lastvikt [ton]: Consolidated Shipping Line (2021), http://cslindia.net/type-of-container-ships/ [Åtkomstdatum: 20 december 2023]; Deplacement [ton]: Shibata Fender Team (2021) SFT Design Manual, https://www.shibata-fender.team/files/content/Downloads/SFT-Design-Manual-US-English-2021.pdf [Åtkomstdatum: 14 december 2023]","Drivmedelseffektivitet [MJ/ton/km]: Jämförelse av klimatpåverkan i förhållande till storlek för fartyg på över resp under 10 000 DWT på s. 34 och 36, Samgodsmodellen för 2017. Ca 2.5 gånger större klimatpåverkan/DWT för fartyg under 10 000 DWT. Antagits vara proportionellt mot bränsleförbrukningen. Lastvikt [ton]: Feeder vessels. Högsta lastvikten för spannet. Deplacement [ton]: Antagit bulkfartyg med 10000 DWT."]
["Bulkfartyg \"Handysize\"",null,null,null,null,null,null,null,null,null,0.43,30000,38000,null,null,null,null,null,null,null,null,null,null,null,null,null,"Drivmedelseffektivitet [MJ/ton/km]: Kommissionens genomförandeförordning (EU) 2022/996 av den 14 juni 2022 om regler för att verifiera hållbarhet och kriterier för minskade växthusgasutsläpp och kriterier för låg risk för indirekt ändring av markanvändning ,  bilaga IX; Lastvikt [ton]: Suisca Group (2023), The appropriate types of cargo ships according to the load they carry, https://www.suiscagroup.com/en/noticias/types-of-cargo-ships/ [Åtkomstdatum: 13 december 2023]; Deplacement [ton]: National Technical University of Athens, Naval Architecture and Marine Engineering (2020) Second Module: Emissions, https://shippingsaas.eu/sites/default/files/presentations/2_Emissions_module_All_Bulkcarriers.pdf,  [Åtkomstdatum: 20 december 2023]","Drivmedelseffektivitet [MJ/ton/km]: Det högsta värdet inom kategorin Bulkfartyg \"Handysize\" (eldningsolja) i källan - restprodukter från jordbruket med låg bulkdensitet (125 kg/m3). Lastvikt [ton]: Load capacity. Deplacement [ton]: Avrundat genomsnittligt värde."]
["Bulkfartyg \"Supramax\"",null,null,null,null,null,null,null,null,null,0.27,54000,74000,null,null,null,null,null,null,null,null,null,null,null,null,null,"Drivmedelseffektivitet [MJ/ton/km]: Kommissionens genomförandeförordning (EU) 2022/996 av den 14 juni 2022 om regler för att verifiera hållbarhet och kriterier för minskade växthusgasutsläpp och kriterier för låg risk för indirekt ändring av markanvändning  bilaga IX; Lastvikt [ton]: Network for Transport Measures (NTM), Propulsion trends in bulk carriers, https://www.transportmeasures.org/en/wiki/manuals/sea/payload/ [Åtkomstdatum: 13 december 2023]; Deplacement [ton]: Lindstad, E., et al (2022), Ship of the future – A slender dry-bulker with wind assisted propulsion. Maritime Transport Research, Vol. 3, 2022, 100055, https://sciencedirect.com/science/article/pii/S2666822X22000065?via%3Dihub [Åtkomstdatum: 15 december 2023]","Drivmedelseffektivitet [MJ/ton/km]: Det högsta värdet inom kategorin bulkfartyg \"Supramax\" (eldningsolja) i källan - restprodukter från jordbruket med låg bulkdensitet (125 kg/m3). Lastvikt [ton]: Antagit kvoten lastvikt/DWT på 0.9 enligt NTM och 60000 DWT enligt MAN Energy Solutions. Deplacement [ton]: Deplacement för 200 m Supramax. Avrundat värde."]
["Bulkfartyg, okänt",null,null,null,null,null,null,null,null,null,0.88,8000,13000,null,null,null,null,null,null,null,null,null,null,null,null,null,"Antas vara samma som \"Bulkfartyg, litet\""]
["Landtransport"]
["Lätt lastbil",null,null,null,null,null,null,null,null,null,2.2400000000000002,{"$f":"9*0.75","v":6.75},12,null,null,null,null,null,null,null,null,null,null,null,null,null,"Drivmedelseffektivitet [MJ/ton/km]: Kommissionens genomförandeförordning (EU) 2022/996 av den 14 juni 2022 om regler för att verifiera hållbarhet och kriterier för minskade växthusgasutsläpp och kriterier för låg risk för indirekt ändring av markanvändning  bilaga IX; Lastvikt [ton]: Johansson, M., (2021), Klimat och miljöeffekter av att flytta godstransporter från väg, VTI, http://vti.diva-portal.org/smash/get/diva2:1569889/FULLTEXT01 [Åtkomstdatum: 20 december 2023]; Nelldal, B. & Ahlstedt, L. (2023). Strukturförändringar inom godstransporter - Utbud efterfrågan och konkurrens 1988-2022 samt strukturförändringar i järnvägens godstrafik. https://www.diva-portal.org/smash/get/diva2:1796987/FULLTEXT01.pdf [Åtkomstdatum: 13 december 2023]","Drivmedelseffektivitet [MJ/ton/km]: Lastbil (12 ton) för transport av färska fruktklasar (FFB) (diesel). Lastvikt [ton]: Lastkapaciteten 9 ton för lastbil med totalvikt mellan 3.5 and 15 ton; två axlar enligt (VTI, 2021). Fyllnadsgraden antagen till 75% enligt (Bolle Rail Research, 2023) för lastbil med lastkapaciteten 40 ton."]
["Tung lastbil",null,null,null,null,null,null,null,null,null,0.88,{"$f":"40*0.75","v":30},40,null,null,null,null,null,null,null,null,null,null,null,null,null,"Drivmedelseffektivitet [MJ/ton/km]: Kommissionens genomförandeförordning (EU) 2022/996 av den 14 juni 2022 om regler för att verifiera hållbarhet och kriterier för minskade växthusgasutsläpp och kriterier för låg risk för indirekt ändring av markanvändning , bilaga IX; Lastvikt [ton]: Johansson, M., (2021), Klimat och miljöeffekter av att flytta godstransporter från väg, VTI, http://vti.diva-portal.org/smash/get/diva2:1569889/FULLTEXT01 [Åtkomstdatum: 20 december 2023]; Nelldal, B. & Ahlstedt, L. (2023). Strukturförändringar inom godstransporter - Utbud efterfrågan och konkurrens 1988-2022 samt strukturförändringar i järnvägens godstrafik. https://www.diva-portal.org/smash/get/diva2:1796987/FULLTEXT01.pdf [Åtkomstdatum: 13 december 2023]","Drivmedelseffektivitet [MJ/ton/km]: Lastbil (40 ton) för stallgödsel (diesel). Den högsta bränsleförbrukningen bland 40-tons lastbilar i källan. Lastvikt [ton]: Lastkapaciteten 28 ton för lastbil med totalvikt mellan 25 and 40 ton; ekipage med 3 + 4 axlar enligt (VTI, 2021). Fyllnadsgraden antagen till 75% enligt (Bolle Rail Research, 2023) för lastbil med lastkapaciteten 40 ton."]
["Okänt fordon",null,null,null,null,null,null,null,null,null,{"$f":"K91","v":2.2400000000000002},{"$f":"L91","v":6.75},{"$f":"M91","v":12}]
["Järnvägstransport - diesellok",null,null,null,null,null,null,null,null,null,0.25,641,1229,null,null,null,null,null,null,null,null,null,null,null,null,null,"Drivmedelseffektivitet [MJ/ton/km]: Kommissionens genomförandeförordning (EU) 2022/996 av den 14 juni 2022 om regler för att verifiera hållbarhet och kriterier för minskade växthusgasutsläpp och kriterier för låg risk för indirekt ändring av markanvändning, bilaga IX; Lastvikt [ton]: Strukturförändringar inom godstransporter (Nelldal & Ahlstedt. Bolle Rail Research, 2023). https://www.diva-portal.org/smash/get/diva2:1796987/FULLTEXT01.pdf; Deplacement [ton]: Nelldal, B. & Ahlstedt, L. (2023). Strukturförändringar inom godstransporter - Utbud efterfrågan och konkurrens 1988-2022 samt strukturförändringar i järnvägens godstrafik. https://www.diva-portal.org/smash/get/diva2:1796987/FULLTEXT01.pdf [Åtkomstdatum: 13 december 2023]","Drivmedelseffektivitet [MJ/ton/km]: Godståg Förenta staterna (diesel). Lastvikt [ton]: Genomsnittlig lastvikt för godståg år 2022. Deplacement [ton]: Genomsnittlig tågvikt för godståg år 2022."]
["Järnvägstransport - el",null,null,null,null,null,null,null,null,null,0.21,641,1229,null,null,null,null,null,null,null,null,null,null,null,null,null,"Drivmedelseffektivitet [MJ/ton/km]: Kommissionens genomförandeförordning (EU) 2022/996 av den 14 juni 2022 om regler för att verifiera hållbarhet och kriterier för minskade växthusgasutsläpp och kriterier för låg risk för indirekt ändring av markanvändning, bilaga IX; Lastvikt [ton]: Strukturförändringar inom godstransporter (Nelldal & Ahlstedt. Bolle Rail Research, 2023). https://www.diva-portal.org/smash/get/diva2:1796987/FULLTEXT01.pdf; Deplacement [ton]: Nelldal, B. & Ahlstedt, L. (2023). Strukturförändringar inom godstransporter - Utbud efterfrågan och konkurrens 1988-2022 samt strukturförändringar i järnvägens godstrafik. https://www.diva-portal.org/smash/get/diva2:1796987/FULLTEXT01.pdf [Åtkomstdatum: 13 december 2023]","Drivmedelseffektivitet [MJ/ton/km]: Järnväg (elektrisk, mellanspänning). Lastvikt [ton]: Genomsnittlig lastvikt för godståg år 2022. Deplacement [ton]: Genomsnittlig tågvikt för godståg år 2022."]
["Delnormalvärden från STEMFS 2025:2 bilaga 6 (Disaggregerade normalvärden (delnormalvärden) för flytande biodrivmedel och flytande biobränslen) \n\nNormalvärden från STEMFS 2025:2 Bilaga 3 ( Normalvärden för flytande biodrivmedel när de produceras utan några nettoutsläpp av koldioxidekvivalenter till följd av förändrad markanvändning)"]
["Produktionskedja"]
["Flytande"]
["Etanol av sockerbetor (utan biogas från drank,  naturgas som processbränsle i konventionell panna)",null,null,null,null,null,null,null,null,null,null,null,null,9.6,26.3,2.2999999999999998,0.59,null,null,null,null,null,null,null,null,null,"eec inklusive N2O-utsläpp från mark, ep, etd [g CO2eq/MJ]: Delnormalvärden från STEMFS 2025:2 Bilaga 6, Normalvärde för minskningen av växthusgasutsläpp [%/100]: Normalvärden från STEMFS 2025:2 Bilaga 3","eec: Värde enligt produktionskedjan \"Etanol av sockerbetor\"."]
["Etanol av sockerbetor (med biogas från drank,  naturgas som processbränsle i konventionell panna)",null,null,null,null,null,null,null,null,null,null,null,null,9.6,13.6,2.2999999999999998,0.73,null,null,null,null,null,null,null,null,null,"eec inklusive N2O-utsläpp från mark, ep, etd [g CO2eq/MJ]: Delnormalvärden från STEMFS 2025:2 Bilaga 6, Normalvärde för minskningen av växthusgasutsläpp [%/100]: Normalvärden från STEMFS 2025:2 Bilaga 3"]
["Etanol av sockerbetor (utan biogas från drank,  naturgas som processbränsle i kraftvärmeverk (Normalvärde: *, Delnormalvärde: **))",null,null,null,null,null,null,null,null,null,null,null,null,9.6,18.5,2.2999999999999998,0.68,null,null,null,null,null,null,null,null,null,"eec inklusive N2O-utsläpp från mark, ep, etd [g CO2eq/MJ]: Delnormalvärden från STEMFS 2025:2 Bilaga 6, Normalvärde för minskningen av växthusgasutsläpp [%/100]: Normalvärden från STEMFS 2025:2 Bilaga 3"]
["Etanol av sockerbetor (med biogas från drank,  naturgas som processbränsle i kraftvärmeverk (Normalvärde: *, Delnormalvärde: **))",null,null,null,null,null,null,null,null,null,null,null,null,9.6,10.6,2.2999999999999998,0.76,null,null,null,null,null,null,null,null,null,"eec inklusive N2O-utsläpp från mark, ep, etd [g CO2eq/MJ]: Delnormalvärden från STEMFS 2025:2 Bilaga 6, Normalvärde för minskningen av växthusgasutsläpp [%/100]: Normalvärden från STEMFS 2025:2 Bilaga 3"]
["Etanol av sockerbetor (utan biogas från drank,  brunkol som processbränsle i kraftvärmeverk (Normalvärde: *, Delnormalvärde: **))",null,null,null,null,null,null,null,null,null,null,null,null,9.6,38.299999999999997,2.2999999999999998,0.47,null,null,null,null,null,null,null,null,null,"eec inklusive N2O-utsläpp från mark, ep, etd [g CO2eq/MJ]: Delnormalvärden från STEMFS 2025:2 Bilaga 6, Normalvärde för minskningen av växthusgasutsläpp [%/100]: Normalvärden från STEMFS 2025:2 Bilaga 3"]
["Etanol av sockerbetor (med biogas från drank,  brunkol som processbränsle i kraftvärmeverk (Normalvärde: *, Delnormalvärde: **))",null,null,null,null,null,null,null,null,null,null,null,null,9.6,22,2.2999999999999998,0.64,null,null,null,null,null,null,null,null,null,"eec inklusive N2O-utsläpp från mark, ep, etd [g CO2eq/MJ]: Delnormalvärden från STEMFS 2025:2 Bilaga 6, Normalvärde för minskningen av växthusgasutsläpp [%/100]: Normalvärden från STEMFS 2025:2 Bilaga 3"]
["Etanol av majs (naturgas som processbränsle  i konventionell panna)",null,null,null,null,null,null,null,null,null,null,null,null,25.5,29.1,2.2000000000000002,0.4,null,null,null,null,null,null,null,null,null,"eec inklusive N2O-utsläpp från mark, ep, etd [g CO2eq/MJ]: Delnormalvärden från STEMFS 2025:2 Bilaga 6, Normalvärde för minskningen av växthusgasutsläpp [%/100]: Normalvärden från STEMFS 2025:2 Bilaga 3","eec: Värde enligt produktionskedjan \"Etanol av majs\"."]
["Etanol av majs (naturgas som processbränsle  i kraftvärmeverk (Normalvärde: *, Delnormalvärde: **))",null,null,null,null,null,null,null,null,null,null,null,null,25.5,20.8,2.2000000000000002,0.48,null,null,null,null,null,null,null,null,null,"eec inklusive N2O-utsläpp från mark, ep, etd [g CO2eq/MJ]: Delnormalvärden från STEMFS 2025:2 Bilaga 6, Normalvärde för minskningen av växthusgasutsläpp [%/100]: Normalvärden från STEMFS 2025:2 Bilaga 3"]
["Etanol av majs (brunkol som processbränsle  i kraftvärmeverk (Normalvärde: *, Delnormalvärde: **))",null,null,null,null,null,null,null,null,null,null,null,null,25.5,40.1,2.2000000000000002,0.28000000000000003,null,null,null,null,null,null,null,null,null,"eec inklusive N2O-utsläpp från mark, ep, etd [g CO2eq/MJ]: Delnormalvärden från STEMFS 2025:2 Bilaga 6, Normalvärde för minskningen av växthusgasutsläpp [%/100]: Normalvärden från STEMFS 2025:2 Bilaga 3"]
["Etanol av majs (restprodukter från skogsbruk som processbränsle i kraftvärmeverk (Normalvärde: *, Delnormalvärde: **))",null,null,null,null,null,null,null,null,null,null,null,null,25.5,2.6,2.2000000000000002,0.68,null,null,null,null,null,null,null,null,null,"eec inklusive N2O-utsläpp från mark, ep, etd [g CO2eq/MJ]: Delnormalvärden från STEMFS 2025:2 Bilaga 6, Normalvärde för minskningen av växthusgasutsläpp [%/100]: Normalvärden från STEMFS 2025:2 Bilaga 3"]
["Etanol av spannmål utom majs (naturgas som  processbränsle i konventionell panna)",null,null,null,null,null,null,null,null,null,null,null,null,27,29.3,2.2000000000000002,0.38,null,null,null,null,null,null,null,null,null,"eec inklusive N2O-utsläpp från mark, ep, etd [g CO2eq/MJ]: Delnormalvärden från STEMFS 2025:2 Bilaga 6, Normalvärde för minskningen av växthusgasutsläpp [%/100]: Normalvärden från STEMFS 2025:2 Bilaga 3","eec: Värde enligt produktionskedjan \"Etanol av spannmål utom majs\"."]
["Etanol av spannmål utom majs (naturgas som  processbränsle i kraftvärmeverk (Normalvärde: *, Delnormalvärde: **))",null,null,null,null,null,null,null,null,null,null,null,null,27,21.1,2.2000000000000002,0.46,null,null,null,null,null,null,null,null,null,"eec inklusive N2O-utsläpp från mark, ep, etd [g CO2eq/MJ]: Delnormalvärden från STEMFS 2025:2 Bilaga 6, Normalvärde för minskningen av växthusgasutsläpp [%/100]: Normalvärden från STEMFS 2025:2 Bilaga 3"]
["Etanol av spannmål utom majs (brunkol som  processbränsle i kraftvärmeverk (Delnormalvärde ep: **))",null,null,null,null,null,null,null,null,null,null,null,null,27,42.5,2.2000000000000002,0.24,null,null,null,null,null,null,null,null,null,"eec inklusive N2O-utsläpp från mark, ep, etd [g CO2eq/MJ]: Delnormalvärden från STEMFS 2025:2 Bilaga 6, Normalvärde för minskningen av växthusgasutsläpp [%/100]: Normalvärden från STEMFS 2025:2 Bilaga 3"]
["Etanol av spannmål utom majs (restprodukter från skogsbruk som processbränsle i kraftvärmeverk Normalvärde: *, Delnormalvärde: **))",null,null,null,null,null,null,null,null,null,null,null,null,27,2.2000000000000002,2.2000000000000002,0.67,null,null,null,null,null,null,null,null,null,"eec inklusive N2O-utsläpp från mark, ep, etd [g CO2eq/MJ]: Delnormalvärden från STEMFS 2025:2 Bilaga 6, Normalvärde för minskningen av växthusgasutsläpp [%/100]: Normalvärden från STEMFS 2025:2 Bilaga 3"]
["Etanol av sockerrör",null,null,null,null,null,null,null,null,null,null,null,null,17.100000000000001,1.8,9.6999999999999993,0.7,null,null,null,null,null,null,null,null,null,"eec inklusive N2O-utsläpp från mark, ep, etd [g CO2eq/MJ]: Delnormalvärden från STEMFS 2025:2 Bilaga 6, Normalvärde för minskningen av växthusgasutsläpp [%/100]: Normalvärden från STEMFS 2025:2 Bilaga 3"]
["Biodiesel av raps",null,null,null,null,null,null,null,null,null,null,null,null,32,16.3,1.8,0.47,null,null,null,null,null,null,null,null,null,"eec inklusive N2O-utsläpp från mark, ep, etd [g CO2eq/MJ]: Delnormalvärden från STEMFS 2025:2 Bilaga 6, Normalvärde för minskningen av växthusgasutsläpp [%/100]: Normalvärden från STEMFS 2025:2 Bilaga 3"]
["Biodiesel av solros",null,null,null,null,null,null,null,null,null,null,null,null,26.1,16.5,2.1,0.52,null,null,null,null,null,null,null,null,null,"eec inklusive N2O-utsläpp från mark, ep, etd [g CO2eq/MJ]: Delnormalvärden från STEMFS 2025:2 Bilaga 6, Normalvärde för minskningen av växthusgasutsläpp [%/100]: Normalvärden från STEMFS 2025:2 Bilaga 3"]
["Biodiesel av sojabönor",null,null,null,null,null,null,null,null,null,null,null,null,21.2,16.899999999999999,8.9,0.5,null,null,null,null,null,null,null,null,null,"eec inklusive N2O-utsläpp från mark, ep, etd [g CO2eq/MJ]: Delnormalvärden från STEMFS 2025:2 Bilaga 6, Normalvärde för minskningen av växthusgasutsläpp [%/100]: Normalvärden från STEMFS 2025:2 Bilaga 3"]
["Biodiesel av palmolja (öppen damm för avloppsslam)",null,null,null,null,null,null,null,null,null,null,null,null,26,42.6,6.9,0.2,null,null,null,null,null,null,null,null,null,"eec inklusive N2O-utsläpp från mark, ep, etd [g CO2eq/MJ]: Delnormalvärden från STEMFS 2025:2 Bilaga 6, Normalvärde för minskningen av växthusgasutsläpp [%/100]: Normalvärden från STEMFS 2025:2 Bilaga 3","eec: Värde enligt produktionskedjan \"Biodiesel av palmolja\"."]
["Biodiesel av palmolja (processen i oljefabriken sker med omhändertagande av metan)",null,null,null,null,null,null,null,null,null,null,null,null,26,18.5,6.9,0.45,null,null,null,null,null,null,null,null,null,"eec inklusive N2O-utsläpp från mark, ep, etd [g CO2eq/MJ]: Delnormalvärden från STEMFS 2025:2 Bilaga 6, Normalvärde för minskningen av växthusgasutsläpp [%/100]: Normalvärden från STEMFS 2025:2 Bilaga 3"]
["Biodiesel av avfall i form av matolja",null,null,null,null,null,null,null,null,null,null,null,null,0,13,1.9,0.84,null,null,null,null,null,null,null,null,null,"eec inklusive N2O-utsläpp från mark, ep, etd [g CO2eq/MJ]: Delnormalvärden från STEMFS 2025:2 Bilaga 6, Normalvärde för minskningen av växthusgasutsläpp [%/100]: Normalvärden från STEMFS 2025:2 Bilaga 3"]
["Biodiesel av animaliska fetter från utsmältning (Delnormalvärde ep, etd: *, Delnormalvärde eec, Normalvärde: **)",null,null,null,null,null,null,null,null,null,null,null,null,0,19.100000000000001,1.6,0.78,null,null,null,null,null,null,null,null,null,"eec inklusive N2O-utsläpp från mark, ep, etd [g CO2eq/MJ]: Delnormalvärden från STEMFS 2025:2 Bilaga 6, Normalvärde för minskningen av växthusgasutsläpp [%/100]: Normalvärden från STEMFS 2025:2 Bilaga 3"]
["Vätebehandlad vegetabilisk olja av raps",null,null,null,null,null,null,null,null,null,null,null,null,33.4,15,1.7,0.47,null,null,null,null,null,null,null,null,null,"eec inklusive N2O-utsläpp från mark, ep, etd [g CO2eq/MJ]: Delnormalvärden från STEMFS 2025:2 Bilaga 6, Normalvärde för minskningen av växthusgasutsläpp [%/100]: Normalvärden från STEMFS 2025:2 Bilaga 3"]
["Vätebehandlad vegetabilisk olja av solros",null,null,null,null,null,null,null,null,null,null,null,null,26.9,14.7,2,0.54,null,null,null,null,null,null,null,null,null,"eec inklusive N2O-utsläpp från mark, ep, etd [g CO2eq/MJ]: Delnormalvärden från STEMFS 2025:2 Bilaga 6, Normalvärde för minskningen av växthusgasutsläpp [%/100]: Normalvärden från STEMFS 2025:2 Bilaga 3"]
["Vätebehandlad vegetabilisk olja av sojabönor",null,null,null,null,null,null,null,null,null,null,null,null,22.1,15.2,9.1999999999999993,0.51,null,null,null,null,null,null,null,null,null,"eec inklusive N2O-utsläpp från mark, ep, etd [g CO2eq/MJ]: Delnormalvärden från STEMFS 2025:2 Bilaga 6, Normalvärde för minskningen av växthusgasutsläpp [%/100]: Normalvärden från STEMFS 2025:2 Bilaga 3"]
["Vätebehandlad vegetabilisk olja av palmolja  (öppen damm för avloppsslam)",null,null,null,null,null,null,null,null,null,null,null,null,27.3,38.9,7,0.22,null,null,null,null,null,null,null,null,null,"eec inklusive N2O-utsläpp från mark, ep, etd [g CO2eq/MJ]: Delnormalvärden från STEMFS 2025:2 Bilaga 6, Normalvärde för minskningen av växthusgasutsläpp [%/100]: Normalvärden från STEMFS 2025:2 Bilaga 3","eec: Värde enligt produktionskedjan \"Vätebehandlad vegetabilisk olja av palmolja\"."]
["Vätebehandlad vegetabilisk olja av palmolja (processen i oljefabriken sker med omhändertagande av metan)",null,null,null,null,null,null,null,null,null,null,null,null,27.3,13.6,7,0.49,null,null,null,null,null,null,null,null,null,"eec inklusive N2O-utsläpp från mark, ep, etd [g CO2eq/MJ]: Delnormalvärden från STEMFS 2025:2 Bilaga 6, Normalvärde för minskningen av växthusgasutsläpp [%/100]: Normalvärden från STEMFS 2025:2 Bilaga 3"]
["Vätebehandlad olja av avfall i form av matolja",null,null,null,null,null,null,null,null,null,null,null,null,0,14.3,1.7,0.83,null,null,null,null,null,null,null,null,null,"eec inklusive N2O-utsläpp från mark, ep, etd [g CO2eq/MJ]: Delnormalvärden från STEMFS 2025:2 Bilaga 6, Normalvärde för minskningen av växthusgasutsläpp [%/100]: Normalvärden från STEMFS 2025:2 Bilaga 3"]
["Vätebehandlad olja av animaliska fetter från  utsmältning (Delnormalvärde ep, etd: *, Delnormalvärde eec, normalvärde: **)",null,null,null,null,null,null,null,null,null,null,null,null,0,20.3,1.5,0.77,null,null,null,null,null,null,null,null,null,"eec inklusive N2O-utsläpp från mark, ep, etd [g CO2eq/MJ]: Delnormalvärden från STEMFS 2025:2 Bilaga 6, Normalvärde för minskningen av växthusgasutsläpp [%/100]: Normalvärden från STEMFS 2025:2 Bilaga 3"]
["Ren vegetabilisk olja av raps",null,null,null,null,null,null,null,null,null,null,null,null,33.4,5.2,1.4,0.56999999999999995,null,null,null,null,null,null,null,null,null,"eec inklusive N2O-utsläpp från mark, ep, etd [g CO2eq/MJ]: Delnormalvärden från STEMFS 2025:2 Bilaga 6, Normalvärde för minskningen av växthusgasutsläpp [%/100]: Normalvärden från STEMFS 2025:2 Bilaga 3"]
["Ren vegetabilisk olja av solros",null,null,null,null,null,null,null,null,null,null,null,null,27.2,5.4,1.7,0.64,null,null,null,null,null,null,null,null,null,"eec inklusive N2O-utsläpp från mark, ep, etd [g CO2eq/MJ]: Delnormalvärden från STEMFS 2025:2 Bilaga 6, Normalvärde för minskningen av växthusgasutsläpp [%/100]: Normalvärden från STEMFS 2025:2 Bilaga 3"]
["Ren vegetabilisk olja av sojabönor",null,null,null,null,null,null,null,null,null,null,null,null,22.2,5.9,8.8000000000000007,0.61,null,null,null,null,null,null,null,null,null,"eec inklusive N2O-utsläpp från mark, ep, etd [g CO2eq/MJ]: Delnormalvärden från STEMFS 2025:2 Bilaga 6, Normalvärde för minskningen av växthusgasutsläpp [%/100]: Normalvärden från STEMFS 2025:2 Bilaga 3"]
["Ren vegetabilisk olja av palmolja (öppen damm för avloppsslam)",null,null,null,null,null,null,null,null,null,null,null,null,27.1,31.7,6.7,0.3,null,null,null,null,null,null,null,null,null,"eec inklusive N2O-utsläpp från mark, ep, etd [g CO2eq/MJ]: Delnormalvärden från STEMFS 2025:2 Bilaga 6, Normalvärde för minskningen av växthusgasutsläpp [%/100]: Normalvärden från STEMFS 2025:2 Bilaga 3","eec: Värde enligt produktionskedjan \"Ren vegetabilisk olja av palmolja\"."]
["Ren vegetabilisk olja av palmolja (processen i  oljefabriken sker med omhändertagande av metan)",null,null,null,null,null,null,null,null,null,null,null,null,27.1,6.5,6.7,0.56999999999999995,null,null,null,null,null,null,null,null,null,"eec inklusive N2O-utsläpp från mark, ep, etd [g CO2eq/MJ]: Delnormalvärden från STEMFS 2025:2 Bilaga 6, Normalvärde för minskningen av växthusgasutsläpp [%/100]: Normalvärden från STEMFS 2025:2 Bilaga 3"]
["Ren olja av avfall i form av matolja",null,null,null,null,null,null,null,null,null,null,null,null,0,0.8,1.4,0.98,null,null,null,null,null,null,null,null,null,"eec inklusive N2O-utsläpp från mark, ep, etd [g CO2eq/MJ]: Delnormalvärden från STEMFS 2025:2 Bilaga 6, Normalvärde för minskningen av växthusgasutsläpp [%/100]: Normalvärden från STEMFS 2025:2 Bilaga 3"]
["Delnormalvärden från STEMFS 2025:2 Bilaga 7 (Uppskattade disaggregerade normalvärden för framtida biodrivmedel och flytande biobränslen som inte, eller bara i försumbar omfattning, fanns på marknaden 2016)\n\nNormalvärden från STEMFS 2025:2 Bilaga 4 (Uppskattade normalvärden för framtida biodrivmedel som inte, eller bara i försumbar omfattning, fanns på marknaden under 2016, när de produceras utan några nettoutsläpp av koldioxidekvivalenter till följd av förändrad markanvändning)"]
["Etanol av vetehalm",null,null,null,null,null,null,null,null,null,null,null,null,1.8,6.8,7.1,0.83,null,null,null,null,null,null,null,null,null,"eec inklusive N2O-utsläpp från mark, ep, etd [g CO2eq/MJ]: Delnormalvärden från STEMFS 2025:2 Bilaga 7, Normalvärde för minskningen av växthusgasutsläpp [%/100]: Normalvärden från STEMFS 2025:2 Bilaga 4"]
["Fischer-Tropsch-diesel av virkesavfall i fristående anläggningar",null,null,null,null,null,null,null,null,null,null,null,null,3.3,0.1,12.2,0.83,null,null,null,null,null,null,null,null,null,"eec inklusive N2O-utsläpp från mark, ep, etd [g CO2eq/MJ]: Delnormalvärden från STEMFS 2025:2 Bilaga 7, Normalvärde för minskningen av växthusgasutsläpp [%/100]: Normalvärden från STEMFS 2025:2 Bilaga 4"]
["Fischer-Tropsch-diesel av odlad skog i fristående anläggningar",null,null,null,null,null,null,null,null,null,null,null,null,8.1999999999999993,0.1,8.4,0.82,null,null,null,null,null,null,null,null,null,"eec inklusive N2O-utsläpp från mark, ep, etd [g CO2eq/MJ]: Delnormalvärden från STEMFS 2025:2 Bilaga 7, Normalvärde för minskningen av växthusgasutsläpp [%/100]: Normalvärden från STEMFS 2025:2 Bilaga 4"]
["Fischer-Tropsch-bensin av virkesavfall i fristående anläggningar",null,null,null,null,null,null,null,null,null,null,null,null,3.3,0.1,12.2,0.83,null,null,null,null,null,null,null,null,null,"eec inklusive N2O-utsläpp från mark, ep, etd [g CO2eq/MJ]: Delnormalvärden från STEMFS 2025:2 Bilaga 7, Normalvärde för minskningen av växthusgasutsläpp [%/100]: Normalvärden från STEMFS 2025:2 Bilaga 4"]
["Fischer-Tropsch-bensin av odlad skog i fristående anläggningar",null,null,null,null,null,null,null,null,null,null,null,null,8.1999999999999993,0.1,8.4,0.82,null,null,null,null,null,null,null,null,null,"eec inklusive N2O-utsläpp från mark, ep, etd [g CO2eq/MJ]: Delnormalvärden från STEMFS 2025:2 Bilaga 7, Normalvärde för minskningen av växthusgasutsläpp [%/100]: Normalvärden från STEMFS 2025:2 Bilaga 4"]
["Dimetyleter (DME) av virkesavfall i fristående anläggningar",null,null,null,null,null,null,null,null,null,null,null,null,3.1,0,12.1,0.84,null,null,null,null,null,null,null,null,null,"eec inklusive N2O-utsläpp från mark, ep, etd [g CO2eq/MJ]: Delnormalvärden från STEMFS 2025:2 Bilaga 7, Normalvärde för minskningen av växthusgasutsläpp [%/100]: Normalvärden från STEMFS 2025:2 Bilaga 4"]
["Dimetyleter (DME) av odlad skog i fristående anläggningar",null,null,null,null,null,null,null,null,null,null,null,null,7.6,0,8.6,0.83,null,null,null,null,null,null,null,null,null,"eec inklusive N2O-utsläpp från mark, ep, etd [g CO2eq/MJ]: Delnormalvärden från STEMFS 2025:2 Bilaga 7, Normalvärde för minskningen av växthusgasutsläpp [%/100]: Normalvärden från STEMFS 2025:2 Bilaga 4"]
["Metanol av virkesavfall i fristående anläggningar",null,null,null,null,null,null,null,null,null,null,null,null,3.1,0,12.1,0.84,null,null,null,null,null,null,null,null,null,"eec inklusive N2O-utsläpp från mark, ep, etd [g CO2eq/MJ]: Delnormalvärden från STEMFS 2025:2 Bilaga 7, Normalvärde för minskningen av växthusgasutsläpp [%/100]: Normalvärden från STEMFS 2025:2 Bilaga 4"]
["Metanol av odlad skog i fristående anläggningar",null,null,null,null,null,null,null,null,null,null,null,null,7.6,0,8.6,0.83,null,null,null,null,null,null,null,null,null,"eec inklusive N2O-utsläpp från mark, ep, etd [g CO2eq/MJ]: Delnormalvärden från STEMFS 2025:2 Bilaga 7, Normalvärde för minskningen av växthusgasutsläpp [%/100]: Normalvärden från STEMFS 2025:2 Bilaga 4"]
["Fischer-Tropsch-diesel av svartlutsförgasning integrerad med massafabrik",null,null,null,null,null,null,null,null,null,null,null,null,2.5,0,7.7,0.89,null,null,null,null,null,null,null,null,null,"eec inklusive N2O-utsläpp från mark, ep, etd [g CO2eq/MJ]: Delnormalvärden från STEMFS 2025:2 Bilaga 7, Normalvärde för minskningen av växthusgasutsläpp [%/100]: Normalvärden från STEMFS 2025:2 Bilaga 4"]
["Fischer-Tropsch-bensin av svartlutsförgasning integrerad med massafabrik",null,null,null,null,null,null,null,null,null,null,null,null,2.5,0,7.9,0.89,null,null,null,null,null,null,null,null,null,"eec inklusive N2O-utsläpp från mark, ep, etd [g CO2eq/MJ]: Delnormalvärden från STEMFS 2025:2 Bilaga 7, Normalvärde för minskningen av växthusgasutsläpp [%/100]: Normalvärden från STEMFS 2025:2 Bilaga 4"]
["Dimetyleter (DME) av svartlutsförgasning integrerad med massafabrik",null,null,null,null,null,null,null,null,null,null,null,null,2.5,0,7.7,0.89,null,null,null,null,null,null,null,null,null,"eec inklusive N2O-utsläpp från mark, ep, etd [g CO2eq/MJ]: Delnormalvärden från STEMFS 2025:2 Bilaga 7, Normalvärde för minskningen av växthusgasutsläpp [%/100]: Normalvärden från STEMFS 2025:2 Bilaga 4"]
["Metanol av svartlutsförgasning integrerad med massafabrik",null,null,null,null,null,null,null,null,null,null,null,null,2.5,0,7.9,0.89,null,null,null,null,null,null,null,null,null,"eec inklusive N2O-utsläpp från mark, ep, etd [g CO2eq/MJ]: Delnormalvärden från STEMFS 2025:2 Bilaga 7, Normalvärde för minskningen av växthusgasutsläpp [%/100]: Normalvärden från STEMFS 2025:2 Bilaga 4"]
["Delnormalvärden från STEMFS 2025:2 Bilaga 8 -Disaggregerade normalvärden för fasta och gasformiga biobränslen samt gasformiga biodrivmedel.\n\n   Normalvärden från STEMFS 2025:2 Bilaga 5 (Normalvärden för minskningar av växthusgas utsläpp från fasta och gasformiga biobränslen samt gasformiga biodrivmedel när de produceras utan några nettoutsläpp av koldioxidekvivalenter till följd av förändrad markanvändning)"]
["Produktionssystem för biobränsle"]
["Fast"]
["Träflis från restprodukter från skogsbruk, transportsträcka 1–500 km",null,null,null,null,null,0.5,null,null,null,null,null,null,null,null,null,null,0,1.9,3.6,0.91,0.87,null,null,null,null,"Emissionsfaktor, Odling, Bearbetning, Transport och distribution [g CO2eq/MJ]: Delnormalvärden från STEMFS 2025:2 Bilaga 8,  Normalvärde för  minskningen av växthusgasutsläpp [%/100]: STEMFS 2025:2 Bilaga 5"," Fall 1 avser processer där en naturgaspanna används för att tillhandahålla processvärme till pelletpressen. El till pelletpressen tillförs från elnätet. \nFall 2a avser processer där en värmepanna för träflis, som matas med förtorkad flis, används för att tillhandahålla processvärme. El till pelletpressen tillförs från elnätet. \nFall 3a avser processer där ett kraftvärmeverk, som matas med förtorkad träflis, används för att tillhandahålla el och värme till pelletpressen.\n\nEn del rader med omfattningen \"träbriketter\" för delnormalvärden men \"träbriketter eller träpellets\" för normalvärden. Skrivfel, och att ha samma omfattning?"]
["Träflis från restprodukter från skogsbruk, transportsträcka 500–2 500 km",null,null,null,null,null,0.5,null,null,null,null,null,null,null,null,null,null,0,1.9,6.2,0.87,0.81,null,null,null,null,"Emissionsfaktor, Odling, Bearbetning, Transport och distribution [g CO2eq/MJ]: Delnormalvärden från STEMFS 2025:2 Bilaga 8,  Normalvärde för  minskningen av växthusgasutsläpp [%/100]: STEMFS 2025:2 Bilaga 5"]
["Träflis från restprodukter från skogsbruk, transportsträcka 2 500–10 000 km",null,null,null,null,null,0.5,null,null,null,null,null,null,null,null,null,null,0,1.9,12.6,0.78,0.67,null,null,null,null,"Emissionsfaktor, Odling, Bearbetning, Transport och distribution [g CO2eq/MJ]: Delnormalvärden från STEMFS 2025:2 Bilaga 8,  Normalvärde för  minskningen av växthusgasutsläpp [%/100]: STEMFS 2025:2 Bilaga 5"]
["Träflis från restprodukter från skogsbruk, transportsträcka över 10 000 km",null,null,null,null,null,0.5,null,null,null,null,null,null,null,null,null,null,0,1.9,24.6,0.6,0.41,null,null,null,null,"Emissionsfaktor, Odling, Bearbetning, Transport och distribution [g CO2eq/MJ]: Delnormalvärden från STEMFS 2025:2 Bilaga 8,  Normalvärde för  minskningen av växthusgasutsläpp [%/100]: STEMFS 2025:2 Bilaga 5"]
["Träflis från skottskog med kort omloppstid (eukalyptus), transportsträcka 2 500–10 000 km",null,null,null,null,null,0.5,null,null,null,null,null,null,null,null,null,null,4.4000000000000004,0,13.2,0.73,0.6,null,null,null,null,"Emissionsfaktor, Odling, Bearbetning, Transport och distribution [g CO2eq/MJ]: Delnormalvärden från STEMFS 2025:2 Bilaga 8,  Normalvärde för  minskningen av växthusgasutsläpp [%/100]: STEMFS 2025:2 Bilaga 5"]
["Träflis från skottskog med kort omloppstid (poppel, med gödning), transportsträcka 1–500 km",null,null,null,null,null,0.5,null,null,null,null,null,null,null,null,null,null,3.9,0,4.2,0.87,0.81,null,null,null,null,"Emissionsfaktor, Odling, Bearbetning, Transport och distribution [g CO2eq/MJ]: Delnormalvärden från STEMFS 2025:2 Bilaga 8,  Normalvärde för  minskningen av växthusgasutsläpp [%/100]: STEMFS 2025:2 Bilaga 5"]
["Träflis från skottskog med kort omloppstid (poppel, med gödning), transportsträcka 500–2 500 km",null,null,null,null,null,0.5,null,null,null,null,null,null,null,null,null,null,3.9,0,6.8,0.84,0.76,null,null,null,null,"Emissionsfaktor, Odling, Bearbetning, Transport och distribution [g CO2eq/MJ]: Delnormalvärden från STEMFS 2025:2 Bilaga 8,  Normalvärde för  minskningen av växthusgasutsläpp [%/100]: STEMFS 2025:2 Bilaga 5"]
["Träflis från skottskog med kort omloppstid (poppel, med gödning), transportsträcka 2 500–10 000 km",null,null,null,null,null,0.5,null,null,null,null,null,null,null,null,null,null,3.9,0,13.2,0.74,0.62,null,null,null,null,"Emissionsfaktor, Odling, Bearbetning, Transport och distribution [g CO2eq/MJ]: Delnormalvärden från STEMFS 2025:2 Bilaga 8,  Normalvärde för  minskningen av växthusgasutsläpp [%/100]: STEMFS 2025:2 Bilaga 5"]
["Träflis från skottskog med kort omloppstid (poppel, med gödning), transportsträcka över 10 000",null,null,null,null,null,0.5,null,null,null,null,null,null,null,null,null,null,3.9,0,25.2,0.56999999999999995,0.35,null,null,null,null,"Emissionsfaktor, Odling, Bearbetning, Transport och distribution [g CO2eq/MJ]: Delnormalvärden från STEMFS 2025:2 Bilaga 8,  Normalvärde för  minskningen av växthusgasutsläpp [%/100]: STEMFS 2025:2 Bilaga 5"]
["Träflis från skottskog med kort omloppstid (poppel, utan gödning), transportsträcka 1–500 km",null,null,null,null,null,0.5,null,null,null,null,null,null,null,null,null,null,2.2000000000000002,0,4.2,0.9,0.85,null,null,null,null,"Emissionsfaktor, Odling, Bearbetning, Transport och distribution [g CO2eq/MJ]: Delnormalvärden från STEMFS 2025:2 Bilaga 8,  Normalvärde för  minskningen av växthusgasutsläpp [%/100]: STEMFS 2025:2 Bilaga 5"]
["Träflis från skottskog med kort omloppstid (poppel, utan gödning), transportsträcka 500–2 500 km",null,null,null,null,null,0.5,null,null,null,null,null,null,null,null,null,null,2.2000000000000002,0,6.8,0.86,0.79,null,null,null,null,"Emissionsfaktor, Odling, Bearbetning, Transport och distribution [g CO2eq/MJ]: Delnormalvärden från STEMFS 2025:2 Bilaga 8,  Normalvärde för  minskningen av växthusgasutsläpp [%/100]: STEMFS 2025:2 Bilaga 5"]
["Träflis från skottskog med kort omloppstid (poppel, utan gödning), transportsträcka 2 500–10 000 km",null,null,null,null,null,0.5,null,null,null,null,null,null,null,null,null,null,2.2000000000000002,0,13.2,0.77,0.65,null,null,null,null,"Emissionsfaktor, Odling, Bearbetning, Transport och distribution [g CO2eq/MJ]: Delnormalvärden från STEMFS 2025:2 Bilaga 8,  Normalvärde för  minskningen av växthusgasutsläpp [%/100]: STEMFS 2025:2 Bilaga 5"]
["Träflis från skottskog med kort omloppstid (poppel, utan gödning), transportsträcka över 10 000 km",null,null,null,null,null,0.5,null,null,null,null,null,null,null,null,null,null,2.2000000000000002,0,25.2,0.59,0.39,null,null,null,null,"Emissionsfaktor, Odling, Bearbetning, Transport och distribution [g CO2eq/MJ]: Delnormalvärden från STEMFS 2025:2 Bilaga 8,  Normalvärde för  minskningen av växthusgasutsläpp [%/100]: STEMFS 2025:2 Bilaga 5"]
["Träflis från stamved, transportsträcka 1–500 km",null,null,null,null,null,0.5,null,null,null,null,null,null,null,null,null,null,1.1000000000000001,0.4,3.6,0.92,0.88,null,null,null,null,"Emissionsfaktor, Odling, Bearbetning, Transport och distribution [g CO2eq/MJ]: Delnormalvärden från STEMFS 2025:2 Bilaga 8,  Normalvärde för  minskningen av växthusgasutsläpp [%/100]: STEMFS 2025:2 Bilaga 5"]
["Träflis från stamved, transportsträcka 500–2 500 km",null,null,null,null,null,0.5,null,null,null,null,null,null,null,null,null,null,1.1000000000000001,0.4,6.2,0.88,0.82,null,null,null,null,"Emissionsfaktor, Odling, Bearbetning, Transport och distribution [g CO2eq/MJ]: Delnormalvärden från STEMFS 2025:2 Bilaga 8,  Normalvärde för  minskningen av växthusgasutsläpp [%/100]: STEMFS 2025:2 Bilaga 5"]
["Träflis från stamved, transportsträcka 2 500–10 000 km",null,null,null,null,null,0.5,null,null,null,null,null,null,null,null,null,null,1.1000000000000001,0.4,12.6,0.79,0.68,null,null,null,null,"Emissionsfaktor, Odling, Bearbetning, Transport och distribution [g CO2eq/MJ]: Delnormalvärden från STEMFS 2025:2 Bilaga 8,  Normalvärde för  minskningen av växthusgasutsläpp [%/100]: STEMFS 2025:2 Bilaga 5"]
["Träflis från stamved, transportsträcka över 10 000 km",null,null,null,null,null,0.5,null,null,null,null,null,null,null,null,null,null,1.1000000000000001,0.4,24.6,0.61,0.42,null,null,null,null,"Emissionsfaktor, Odling, Bearbetning, Transport och distribution [g CO2eq/MJ]: Delnormalvärden från STEMFS 2025:2 Bilaga 8,  Normalvärde för  minskningen av växthusgasutsläpp [%/100]: STEMFS 2025:2 Bilaga 5"]
["Träflis från (trä)industriavfall, transportsträcka 1–500 km",null,null,null,null,null,0.5,null,null,null,null,null,null,null,null,null,null,0,0.4,3.6,0.93,0.9,null,null,null,null,"Emissionsfaktor, Odling, Bearbetning, Transport och distribution [g CO2eq/MJ]: Delnormalvärden från STEMFS 2025:2 Bilaga 8,  Normalvärde för  minskningen av växthusgasutsläpp [%/100]: STEMFS 2025:2 Bilaga 5"]
["Träflis från (trä)industriavfall, transportsträcka 500–2 500 km",null,null,null,null,null,0.5,null,null,null,null,null,null,null,null,null,null,0,0.4,6.2,0.9,0.85,null,null,null,null,"Emissionsfaktor, Odling, Bearbetning, Transport och distribution [g CO2eq/MJ]: Delnormalvärden från STEMFS 2025:2 Bilaga 8,  Normalvärde för  minskningen av växthusgasutsläpp [%/100]: STEMFS 2025:2 Bilaga 5"]
["Träflis från (trä)industriavfall, transportsträcka 2 500–10 000 km",null,null,null,null,null,0.5,null,null,null,null,null,null,null,null,null,null,0,0.4,12.6,0.8,0.71,null,null,null,null,"Emissionsfaktor, Odling, Bearbetning, Transport och distribution [g CO2eq/MJ]: Delnormalvärden från STEMFS 2025:2 Bilaga 8,  Normalvärde för  minskningen av växthusgasutsläpp [%/100]: STEMFS 2025:2 Bilaga 5"]
["Träflis från (trä)industriavfall, transportsträcka över 10 000 km",null,null,null,null,null,0.5,null,null,null,null,null,null,null,null,null,null,0,0.4,24.6,0.63,0.44,null,null,null,null,"Emissionsfaktor, Odling, Bearbetning, Transport och distribution [g CO2eq/MJ]: Delnormalvärden från STEMFS 2025:2 Bilaga 8,  Normalvärde för  minskningen av växthusgasutsläpp [%/100]: STEMFS 2025:2 Bilaga 5"]
["Träbriketter eller träpellets av restprodukter från skogsbruk (fall 1), transportsträcka 1–500 km",null,null,null,null,null,0.3,null,null,null,null,null,null,null,null,null,null,0,30.9,3.5,0.49,0.24,null,null,null,null,"Emissionsfaktor, Odling, Bearbetning, Transport och distribution [g CO2eq/MJ]: Delnormalvärden från STEMFS 2025:2 Bilaga 8,  Normalvärde för  minskningen av växthusgasutsläpp [%/100]: STEMFS 2025:2 Bilaga 5"]
["Träbriketter eller träpellets av restprodukter från skogsbruk (fall 1), transportsträcka 500–2 500 km",null,null,null,null,null,0.3,null,null,null,null,null,null,null,null,null,null,0,30.9,3.3,0.49,0.25,null,null,null,null,"Emissionsfaktor, Odling, Bearbetning, Transport och distribution [g CO2eq/MJ]: Delnormalvärden från STEMFS 2025:2 Bilaga 8,  Normalvärde för  minskningen av växthusgasutsläpp [%/100]: STEMFS 2025:2 Bilaga 5"]
["Träbriketter eller träpellets av restprodukter från skogsbruk (fall 1), transportsträcka 2 500–10 000 km",null,null,null,null,null,0.3,null,null,null,null,null,null,null,null,null,null,0,30.9,5.2,0.47,0.21,null,null,null,null,"Emissionsfaktor, Odling, Bearbetning, Transport och distribution [g CO2eq/MJ]: Delnormalvärden från STEMFS 2025:2 Bilaga 8,  Normalvärde för  minskningen av växthusgasutsläpp [%/100]: STEMFS 2025:2 Bilaga 5"]
["Träbriketter eller träpellets av restprodukter från skogsbruk (fall 1), transportsträcka över 10 000 km",null,null,null,null,null,0.3,null,null,null,null,null,null,null,null,null,null,0,30.9,9.5,0.4,0.11,null,null,null,null,"Emissionsfaktor, Odling, Bearbetning, Transport och distribution [g CO2eq/MJ]: Delnormalvärden från STEMFS 2025:2 Bilaga 8,  Normalvärde för  minskningen av växthusgasutsläpp [%/100]: STEMFS 2025:2 Bilaga 5"]
["Träbriketter eller träpellets av restprodukter från skogsbruk (fall 2a)), transportsträcka 1–500 km",null,null,null,null,null,0.3,null,null,null,null,null,null,null,null,null,null,0,15,3.6,0.72,0.59,null,null,null,null,"Emissionsfaktor, Odling, Bearbetning, Transport och distribution [g CO2eq/MJ]: Delnormalvärden från STEMFS 2025:2 Bilaga 8,  Normalvärde för  minskningen av växthusgasutsläpp [%/100]: STEMFS 2025:2 Bilaga 5"]
["Träbriketter eller träpellets av restprodukter från skogsbruk (fall 2a)), transportsträcka 500–2 500 km",null,null,null,null,null,0.3,null,null,null,null,null,null,null,null,null,null,0,15,3.5,0.72,0.59,null,null,null,null,"Emissionsfaktor, Odling, Bearbetning, Transport och distribution [g CO2eq/MJ]: Delnormalvärden från STEMFS 2025:2 Bilaga 8,  Normalvärde för  minskningen av växthusgasutsläpp [%/100]: STEMFS 2025:2 Bilaga 5"]
["Träbriketter eller träpellets av restprodukter från skogsbruk (fall 2a), transportsträcka 2 500–10 000 km",null,null,null,null,null,0.3,null,null,null,null,null,null,null,null,null,null,0,15,5.3,0.7,0.55000000000000004,null,null,null,null,"Emissionsfaktor, Odling, Bearbetning, Transport och distribution [g CO2eq/MJ]: Delnormalvärden från STEMFS 2025:2 Bilaga 8,  Normalvärde för  minskningen av växthusgasutsläpp [%/100]: STEMFS 2025:2 Bilaga 5"]
["Träbriketter eller träpellets av restprodukter från skogsbruk (fall 2a), transportsträcka över 10 000 km",null,null,null,null,null,0.3,null,null,null,null,null,null,null,null,null,null,0,15,9.8000000000000007,0.63,0.45,null,null,null,null,"Emissionsfaktor, Odling, Bearbetning, Transport och distribution [g CO2eq/MJ]: Delnormalvärden från STEMFS 2025:2 Bilaga 8,  Normalvärde för  minskningen av växthusgasutsläpp [%/100]: STEMFS 2025:2 Bilaga 5"]
["Träbriketter eller träpellets av restprodukter från skogsbruk (fall 3a), transportsträcka 1–500 km",null,null,null,null,null,0.3,null,null,null,null,null,null,null,null,null,null,0,2.8,3.6,0.9,0.85,null,null,null,null,"Emissionsfaktor, Odling, Bearbetning, Transport och distribution [g CO2eq/MJ]: Delnormalvärden från STEMFS 2025:2 Bilaga 8,  Normalvärde för  minskningen av växthusgasutsläpp [%/100]: STEMFS 2025:2 Bilaga 5"]
["Träbriketter eller träpellets av restprodukter från skogsbruk (fall 3a), transportsträcka 500–2 500 km",null,null,null,null,null,0.3,null,null,null,null,null,null,null,null,null,null,0,2.8,3.5,0.9,0.86,null,null,null,null,"Emissionsfaktor, Odling, Bearbetning, Transport och distribution [g CO2eq/MJ]: Delnormalvärden från STEMFS 2025:2 Bilaga 8,  Normalvärde för  minskningen av växthusgasutsläpp [%/100]: STEMFS 2025:2 Bilaga 5"]
["Träbriketter eller träpellets av restprodukter från skogsbruk (fall 3a), transportsträcka 2 500–10 000 km",null,null,null,null,null,0.3,null,null,null,null,null,null,null,null,null,null,0,2.8,5.3,0.88,0.81,null,null,null,null,"Emissionsfaktor, Odling, Bearbetning, Transport och distribution [g CO2eq/MJ]: Delnormalvärden från STEMFS 2025:2 Bilaga 8,  Normalvärde för  minskningen av växthusgasutsläpp [%/100]: STEMFS 2025:2 Bilaga 5"]
["Träbriketter eller träpellets av restprodukter från skogsbruk (fall 3a), transportsträcka över 10 000 km",null,null,null,null,null,0.3,null,null,null,null,null,null,null,null,null,null,0,2.8,9.8000000000000007,0.81,0.72,null,null,null,null,"Emissionsfaktor, Odling, Bearbetning, Transport och distribution [g CO2eq/MJ]: Delnormalvärden från STEMFS 2025:2 Bilaga 8,  Normalvärde för  minskningen av växthusgasutsläpp [%/100]: STEMFS 2025:2 Bilaga 5"]
["Träbriketter från skottskog med kort omloppstid (eukalyptus – fall 1), transportsträcka 2 500–10 000 km",null,null,null,null,null,0.3,null,null,null,null,null,null,null,null,null,null,3.9,29.4,5.2,0.43,0.15,null,null,null,null,"Emissionsfaktor, Odling, Bearbetning, Transport och distribution [g CO2eq/MJ]: Delnormalvärden från STEMFS 2025:2 Bilaga 8,  Normalvärde för  minskningen av växthusgasutsläpp [%/100]: STEMFS 2025:2 Bilaga 5"]
["Träbriketter från skottskog med kort omloppstid (eukalyptus – fall 2a), transportsträcka 2 500–10 000 km",null,null,null,null,null,0.3,null,null,null,null,null,null,null,null,null,null,5,12.7,5.3,0.66,0.49,null,null,null,null,"Emissionsfaktor, Odling, Bearbetning, Transport och distribution [g CO2eq/MJ]: Delnormalvärden från STEMFS 2025:2 Bilaga 8,  Normalvärde för  minskningen av växthusgasutsläpp [%/100]: STEMFS 2025:2 Bilaga 5"]
["Träbriketter från skottskog med kort omloppstid (eukalyptus – fall 3a), transportsträcka 2 500–10 000 km",null,null,null,null,null,0.3,null,null,null,null,null,null,null,null,null,null,5.3,0.4,5.3,0.83,0.75,null,null,null,null,"Emissionsfaktor, Odling, Bearbetning, Transport och distribution [g CO2eq/MJ]: Delnormalvärden från STEMFS 2025:2 Bilaga 8,  Normalvärde för  minskningen av växthusgasutsläpp [%/100]: STEMFS 2025:2 Bilaga 5"]
["Träbriketter  eller träpellets av skottskog med kort omloppstid (poppel, med gödning – fall 1), transportsträcka 1–500 km",null,null,null,null,null,0.3,null,null,null,null,null,null,null,null,null,null,3.4,29.4,3.5,0.46,0.2,null,null,null,null,"Emissionsfaktor, Odling, Bearbetning, Transport och distribution [g CO2eq/MJ]: Delnormalvärden från STEMFS 2025:2 Bilaga 8,  Normalvärde för  minskningen av växthusgasutsläpp [%/100]: STEMFS 2025:2 Bilaga 5"]
["Träbriketter  eller träpellets av skottskog med kort omloppstid (poppel, med gödning – fall 1), transportsträcka 500-10 000 km",null,null,null,null,null,0.3,null,null,null,null,null,null,null,null,null,null,3.4,29.4,5.2,0.44,0.16,null,null,null,null,"Emissionsfaktor, Odling, Bearbetning, Transport och distribution [g CO2eq/MJ]: Delnormalvärden från STEMFS 2025:2 Bilaga 8,  Normalvärde för  minskningen av växthusgasutsläpp [%/100]: STEMFS 2025:2 Bilaga 5"]
["Träbriketter  eller träpellets av skottskog med kort omloppstid (poppel, med gödning – fall 1), transportsträcka över 10 000 km",null,null,null,null,null,0.3,null,null,null,null,null,null,null,null,null,null,3.4,29.4,9.5,0.37,7.0000000000000007E-2,null,null,null,null,"Emissionsfaktor, Odling, Bearbetning, Transport och distribution [g CO2eq/MJ]: Delnormalvärden från STEMFS 2025:2 Bilaga 8,  Normalvärde för  minskningen av växthusgasutsläpp [%/100]: STEMFS 2025:2 Bilaga 5"]
["Träbriketter  eller träpellets av skottskog med kort omloppstid (poppel, med gödning – fall 2a), transportsträcka 1–500 km",null,null,null,null,null,0.3,null,null,null,null,null,null,null,null,null,null,4.4000000000000004,12.7,3.6,0.69,0.54,null,null,null,null,"Emissionsfaktor, Odling, Bearbetning, Transport och distribution [g CO2eq/MJ]: Delnormalvärden från STEMFS 2025:2 Bilaga 8,  Normalvärde för  minskningen av växthusgasutsläpp [%/100]: STEMFS 2025:2 Bilaga 5"]
["Träbriketter  eller träpellets av skottskog med kort omloppstid (poppel, med gödning – fall 2a), transportsträcka 500–10 000 km",null,null,null,null,null,0.3,null,null,null,null,null,null,null,null,null,null,4.4000000000000004,12.7,5.3,0.67,0.5,null,null,null,null,"Emissionsfaktor, Odling, Bearbetning, Transport och distribution [g CO2eq/MJ]: Delnormalvärden från STEMFS 2025:2 Bilaga 8,  Normalvärde för  minskningen av växthusgasutsläpp [%/100]: STEMFS 2025:2 Bilaga 5"]
["Träbriketter  eller träpellets av skottskog med kort omloppstid (poppel, med gödning – fall 2a), transportsträcka över 10 000 km",null,null,null,null,null,0.3,null,null,null,null,null,null,null,null,null,null,4.4000000000000004,12.7,9.8000000000000007,0.6,0.41,null,null,null,null,"Emissionsfaktor, Odling, Bearbetning, Transport och distribution [g CO2eq/MJ]: Delnormalvärden från STEMFS 2025:2 Bilaga 8,  Normalvärde för  minskningen av växthusgasutsläpp [%/100]: STEMFS 2025:2 Bilaga 5"]
["Träbriketter  eller träpellets av skottskog med kort omloppstid (poppel, med gödning – fall 3a), transportsträcka 1–500 km",null,null,null,null,null,0.3,null,null,null,null,null,null,null,null,null,null,4.5999999999999996,0.4,3.6,0.87,0.81,null,null,null,null,"Emissionsfaktor, Odling, Bearbetning, Transport och distribution [g CO2eq/MJ]: Delnormalvärden från STEMFS 2025:2 Bilaga 8,  Normalvärde för  minskningen av växthusgasutsläpp [%/100]: STEMFS 2025:2 Bilaga 5"]
["Träbriketter  eller träpellets av skottskog med kort omloppstid (poppel, med gödning – fall 3a), transportsträcka 500–10 000 km",null,null,null,null,null,0.3,null,null,null,null,null,null,null,null,null,null,4.5999999999999996,0.4,5.3,0.84,0.77,null,null,null,null,"Emissionsfaktor, Odling, Bearbetning, Transport och distribution [g CO2eq/MJ]: Delnormalvärden från STEMFS 2025:2 Bilaga 8,  Normalvärde för  minskningen av växthusgasutsläpp [%/100]: STEMFS 2025:2 Bilaga 5"]
["Träbriketter  eller träpellets av skottskog med kort omloppstid (poppel, med gödning – fall 3a), transportsträcka över 10 000 km",null,null,null,null,null,0.3,null,null,null,null,null,null,null,null,null,null,4.5999999999999996,0.4,9.8000000000000007,0.78,0.67,null,null,null,null,"Emissionsfaktor, Odling, Bearbetning, Transport och distribution [g CO2eq/MJ]: Delnormalvärden från STEMFS 2025:2 Bilaga 8,  Normalvärde för  minskningen av växthusgasutsläpp [%/100]: STEMFS 2025:2 Bilaga 5"]
["Träbriketter  eller träpellets av skottskog med kort omloppstid (poppel, utan gödning – fall 1), transportsträcka 1–500 km",null,null,null,null,null,0.3,null,null,null,null,null,null,null,null,null,null,2,29.4,3.5,0.48,0.23,null,null,null,null,"Emissionsfaktor, Odling, Bearbetning, Transport och distribution [g CO2eq/MJ]: Delnormalvärden från STEMFS 2025:2 Bilaga 8,  Normalvärde för  minskningen av växthusgasutsläpp [%/100]: STEMFS 2025:2 Bilaga 5"]
["Träbriketter  eller träpellets av skottskog med kort omloppstid (poppel, utan gödning – fall 1), transportsträcka 500–10 000 km",null,null,null,null,null,0.3,null,null,null,null,null,null,null,null,null,null,2,29.4,5.2,0.46,0.2,null,null,null,null,"Emissionsfaktor, Odling, Bearbetning, Transport och distribution [g CO2eq/MJ]: Delnormalvärden från STEMFS 2025:2 Bilaga 8,  Normalvärde för  minskningen av växthusgasutsläpp [%/100]: STEMFS 2025:2 Bilaga 5"]
["Träbriketter  eller träpellets av skottskog med kort omloppstid (poppel, utan gödning – fall 1), transportsträcka över 10 000 km",null,null,null,null,null,0.3,null,null,null,null,null,null,null,null,null,null,2,29.4,9.5,0.4,0.1,null,null,null,null,"Emissionsfaktor, Odling, Bearbetning, Transport och distribution [g CO2eq/MJ]: Delnormalvärden från STEMFS 2025:2 Bilaga 8,  Normalvärde för  minskningen av växthusgasutsläpp [%/100]: STEMFS 2025:2 Bilaga 5"]
["Träbriketter  eller träpellets av skottskog med kort omloppstid (poppel, utan gödning – fall 2a), transportsträcka 1–500 km",null,null,null,null,null,0.3,null,null,null,null,null,null,null,null,null,null,2.5,12.7,3.6,0.72,0.57999999999999996,null,null,null,null,"Emissionsfaktor, Odling, Bearbetning, Transport och distribution [g CO2eq/MJ]: Delnormalvärden från STEMFS 2025:2 Bilaga 8,  Normalvärde för  minskningen av växthusgasutsläpp [%/100]: STEMFS 2025:2 Bilaga 5"]
["Träbriketter  eller träpellets av skottskog med kort omloppstid (poppel, utan gödning – fall 2a), transportsträcka 500–10 000 km",null,null,null,null,null,0.3,null,null,null,null,null,null,null,null,null,null,2.5,12.7,5.3,0.69,0.54,null,null,null,null,"Emissionsfaktor, Odling, Bearbetning, Transport och distribution [g CO2eq/MJ]: Delnormalvärden från STEMFS 2025:2 Bilaga 8,  Normalvärde för  minskningen av växthusgasutsläpp [%/100]: STEMFS 2025:2 Bilaga 5"]
["Träbriketter  eller träpellets av skottskog med kort omloppstid (poppel, utan gödning – fall 2a), transportsträcka över 10 000 km",null,null,null,null,null,0.3,null,null,null,null,null,null,null,null,null,null,2.5,12.7,9.8000000000000007,0.63,0.45,null,null,null,null,"Emissionsfaktor, Odling, Bearbetning, Transport och distribution [g CO2eq/MJ]: Delnormalvärden från STEMFS 2025:2 Bilaga 8,  Normalvärde för  minskningen av växthusgasutsläpp [%/100]: STEMFS 2025:2 Bilaga 5"]
["Träbriketter  eller träpellets av skottskog med kort omloppstid (poppel, utan gödning – fall 3a), transportsträcka 1–500 km",null,null,null,null,null,0.3,null,null,null,null,null,null,null,null,null,null,2.6,0.4,3.6,0.9,0.85,null,null,null,null,"Emissionsfaktor, Odling, Bearbetning, Transport och distribution [g CO2eq/MJ]: Delnormalvärden från STEMFS 2025:2 Bilaga 8,  Normalvärde för  minskningen av växthusgasutsläpp [%/100]: STEMFS 2025:2 Bilaga 5"]
["Träbriketter  eller träpellets av skottskog med kort omloppstid (poppel, utan gödning – fall 3a), transportsträcka 500–10 000 km",null,null,null,null,null,0.3,null,null,null,null,null,null,null,null,null,null,2.6,0.4,5.3,0.87,0.81,null,null,null,null,"Emissionsfaktor, Odling, Bearbetning, Transport och distribution [g CO2eq/MJ]: Delnormalvärden från STEMFS 2025:2 Bilaga 8,  Normalvärde för  minskningen av växthusgasutsläpp [%/100]: STEMFS 2025:2 Bilaga 5"]
["Träbriketter  eller träpellets av skottskog med kort omloppstid (poppel, utan gödning – fall 3a), transportsträcka över 10 000 km",null,null,null,null,null,0.3,null,null,null,null,null,null,null,null,null,null,2.6,0.4,9.8000000000000007,0.81,0.71,null,null,null,null,"Emissionsfaktor, Odling, Bearbetning, Transport och distribution [g CO2eq/MJ]: Delnormalvärden från STEMFS 2025:2 Bilaga 8,  Normalvärde för  minskningen av växthusgasutsläpp [%/100]: STEMFS 2025:2 Bilaga 5"]
["Träbriketter eller träpellets av stamved (fall 1), transportsträcka 1–500 km",null,null,null,null,null,0.3,null,null,null,null,null,null,null,null,null,null,1.1000000000000001,29.8,3.5,0.49,0.24,null,null,null,null,"Emissionsfaktor, Odling, Bearbetning, Transport och distribution [g CO2eq/MJ]: Delnormalvärden från STEMFS 2025:2 Bilaga 8,  Normalvärde för  minskningen av växthusgasutsläpp [%/100]: STEMFS 2025:2 Bilaga 5"]
["Träbriketter eller träpellets av stamved (fall 1), transportsträcka 500–2 500 km",null,null,null,null,null,0.3,null,null,null,null,null,null,null,null,null,null,1.1000000000000001,29.8,3.3,0.49,0.25,null,null,null,null,"Emissionsfaktor, Odling, Bearbetning, Transport och distribution [g CO2eq/MJ]: Delnormalvärden från STEMFS 2025:2 Bilaga 8,  Normalvärde för  minskningen av växthusgasutsläpp [%/100]: STEMFS 2025:2 Bilaga 5"]
["Träbriketter eller träpellets av stamved (fall 1), transportsträcka 2 500–10 000  km",null,null,null,null,null,0.3,null,null,null,null,null,null,null,null,null,null,1.1000000000000001,29.8,5.2,0.47,0.21,null,null,null,null,"Emissionsfaktor, Odling, Bearbetning, Transport och distribution [g CO2eq/MJ]: Delnormalvärden från STEMFS 2025:2 Bilaga 8,  Normalvärde för  minskningen av växthusgasutsläpp [%/100]: STEMFS 2025:2 Bilaga 5"]
["Träbriketter eller träpellets av stamved (fall 1), transportsträcka över 10 000 km",null,null,null,null,null,0.3,null,null,null,null,null,null,null,null,null,null,1.1000000000000001,29.8,9.5,0.4,0.11,null,null,null,null,"Emissionsfaktor, Odling, Bearbetning, Transport och distribution [g CO2eq/MJ]: Delnormalvärden från STEMFS 2025:2 Bilaga 8,  Normalvärde för  minskningen av växthusgasutsläpp [%/100]: STEMFS 2025:2 Bilaga 5"]
["Träbriketter eller träpellets av stamved (fall 2a), transportsträcka 1–500 km",null,null,null,null,null,0.3,null,null,null,null,null,null,null,null,null,null,1.4,13.2,3.6,0.73,0.6,null,null,null,null,"Emissionsfaktor, Odling, Bearbetning, Transport och distribution [g CO2eq/MJ]: Delnormalvärden från STEMFS 2025:2 Bilaga 8,  Normalvärde för  minskningen av växthusgasutsläpp [%/100]: STEMFS 2025:2 Bilaga 5"]
["Träbriketter eller träpellets av stamved (fall 2a), transportsträcka 500–2 500 km",null,null,null,null,null,0.3,null,null,null,null,null,null,null,null,null,null,1.4,13.2,3.5,0.73,0.6,null,null,null,null,"Emissionsfaktor, Odling, Bearbetning, Transport och distribution [g CO2eq/MJ]: Delnormalvärden från STEMFS 2025:2 Bilaga 8,  Normalvärde för  minskningen av växthusgasutsläpp [%/100]: STEMFS 2025:2 Bilaga 5"]
["Träbriketter eller träpellets av stamved (fall 2a), transportsträcka 2 500–10 000  km",null,null,null,null,null,0.3,null,null,null,null,null,null,null,null,null,null,1.4,13.2,5.3,0.7,0.56000000000000005,null,null,null,null,"Emissionsfaktor, Odling, Bearbetning, Transport och distribution [g CO2eq/MJ]: Delnormalvärden från STEMFS 2025:2 Bilaga 8,  Normalvärde för  minskningen av växthusgasutsläpp [%/100]: STEMFS 2025:2 Bilaga 5"]
["Träbriketter eller träpellets av stamved (fall 2a), transportsträcka över 10 000 km",null,null,null,null,null,0.3,null,null,null,null,null,null,null,null,null,null,1.4,13.2,9.8000000000000007,0.64,0.46,null,null,null,null,"Emissionsfaktor, Odling, Bearbetning, Transport och distribution [g CO2eq/MJ]: Delnormalvärden från STEMFS 2025:2 Bilaga 8,  Normalvärde för  minskningen av växthusgasutsläpp [%/100]: STEMFS 2025:2 Bilaga 5"]
["Träbriketter eller träpellets av stamved (fall 3a), transportsträcka 1–500 km",null,null,null,null,null,0.3,null,null,null,null,null,null,null,null,null,null,1.4,0.9,3.6,0.91,0.86,null,null,null,null,"Emissionsfaktor, Odling, Bearbetning, Transport och distribution [g CO2eq/MJ]: Delnormalvärden från STEMFS 2025:2 Bilaga 8,  Normalvärde för  minskningen av växthusgasutsläpp [%/100]: STEMFS 2025:2 Bilaga 5"]
["Träbriketter eller träpellets av stamved (fall 3a), transportsträcka 500–2 500 km",null,null,null,null,null,0.3,null,null,null,null,null,null,null,null,null,null,1.4,0.9,3.5,0.91,0.87,null,null,null,null,"Emissionsfaktor, Odling, Bearbetning, Transport och distribution [g CO2eq/MJ]: Delnormalvärden från STEMFS 2025:2 Bilaga 8,  Normalvärde för  minskningen av växthusgasutsläpp [%/100]: STEMFS 2025:2 Bilaga 5"]
["Träbriketter eller träpellets av stamved (fall 3a), transportsträcka 2 500–10 000  km",null,null,null,null,null,0.3,null,null,null,null,null,null,null,null,null,null,1.4,0.9,5.3,0.88,0.83,null,null,null,null,"Emissionsfaktor, Odling, Bearbetning, Transport och distribution [g CO2eq/MJ]: Delnormalvärden från STEMFS 2025:2 Bilaga 8,  Normalvärde för  minskningen av växthusgasutsläpp [%/100]: STEMFS 2025:2 Bilaga 5"]
["Träbriketter eller träpellets av stamved (fall 3a), transportsträcka över 10 000 km",null,null,null,null,null,0.3,null,null,null,null,null,null,null,null,null,null,1.4,0.9,9.8000000000000007,0.82,0.73,null,null,null,null,"Emissionsfaktor, Odling, Bearbetning, Transport och distribution [g CO2eq/MJ]: Delnormalvärden från STEMFS 2025:2 Bilaga 8,  Normalvärde för  minskningen av växthusgasutsläpp [%/100]: STEMFS 2025:2 Bilaga 5"]
["Träbriketter eller träpellets av träindustriavfall (fall 1), transportsträcka 1–500 km",null,null,null,null,null,0.3,null,null,null,null,null,null,null,null,null,null,0,17.2,3.3,0.69,0.55000000000000004,null,null,null,null,"Emissionsfaktor, Odling, Bearbetning, Transport och distribution [g CO2eq/MJ]: Delnormalvärden från STEMFS 2025:2 Bilaga 8,  Normalvärde för  minskningen av växthusgasutsläpp [%/100]: STEMFS 2025:2 Bilaga 5"]
["Träbriketter eller träpellets av träindustriavfall (fall 1), transportsträcka 500–2 500 km",null,null,null,null,null,0.3,null,null,null,null,null,null,null,null,null,null,0,17.2,3.2,0.7,0.55000000000000004,null,null,null,null,"Emissionsfaktor, Odling, Bearbetning, Transport och distribution [g CO2eq/MJ]: Delnormalvärden från STEMFS 2025:2 Bilaga 8,  Normalvärde för  minskningen av växthusgasutsläpp [%/100]: STEMFS 2025:2 Bilaga 5"]
["Träbriketter eller träpellets av träindustriavfall (fall 1), transportsträcka 2 500–10 000  km",null,null,null,null,null,0.3,null,null,null,null,null,null,null,null,null,null,0,17.2,5,0.67,0.51,null,null,null,null,"Emissionsfaktor, Odling, Bearbetning, Transport och distribution [g CO2eq/MJ]: Delnormalvärden från STEMFS 2025:2 Bilaga 8,  Normalvärde för  minskningen av växthusgasutsläpp [%/100]: STEMFS 2025:2 Bilaga 5"]
["Träbriketter eller träpellets av träindustriavfall (fall 1), transportsträcka över 10 000 km",null,null,null,null,null,0.3,null,null,null,null,null,null,null,null,null,null,0,17.2,9.1999999999999993,0.61,0.42,null,null,null,null,"Emissionsfaktor, Odling, Bearbetning, Transport och distribution [g CO2eq/MJ]: Delnormalvärden från STEMFS 2025:2 Bilaga 8,  Normalvärde för  minskningen av växthusgasutsläpp [%/100]: STEMFS 2025:2 Bilaga 5"]
["Träbriketter eller träpellets av träindustriavfall (fall 2a), transportsträcka 1–500 km",null,null,null,null,null,0.3,null,null,null,null,null,null,null,null,null,null,0,7.2,3.4,0.84,0.76,null,null,null,null,"Emissionsfaktor, Odling, Bearbetning, Transport och distribution [g CO2eq/MJ]: Delnormalvärden från STEMFS 2025:2 Bilaga 8,  Normalvärde för  minskningen av växthusgasutsläpp [%/100]: STEMFS 2025:2 Bilaga 5"]
["Träbriketter eller träpellets av träindustriavfall (fall 2a), transportsträcka 500–2 500 km",null,null,null,null,null,0.3,null,null,null,null,null,null,null,null,null,null,0,7.2,3.3,0.84,0.77,null,null,null,null,"Emissionsfaktor, Odling, Bearbetning, Transport och distribution [g CO2eq/MJ]: Delnormalvärden från STEMFS 2025:2 Bilaga 8,  Normalvärde för  minskningen av växthusgasutsläpp [%/100]: STEMFS 2025:2 Bilaga 5"]
["Träbriketter eller träpellets av träindustriavfall (fall 2a), transportsträcka 2 500–10 000  km",null,null,null,null,null,0.3,null,null,null,null,null,null,null,null,null,null,0,7.2,5.0999999999999996,0.82,0.73,null,null,null,null,"Emissionsfaktor, Odling, Bearbetning, Transport och distribution [g CO2eq/MJ]: Delnormalvärden från STEMFS 2025:2 Bilaga 8,  Normalvärde för  minskningen av växthusgasutsläpp [%/100]: STEMFS 2025:2 Bilaga 5"]
["Träbriketter eller träpellets av träindustriavfall (fall 2a), transportsträcka över 10 000 km",null,null,null,null,null,0.3,null,null,null,null,null,null,null,null,null,null,0,7.2,9.3000000000000007,0.75,0.63,null,null,null,null,"Emissionsfaktor, Odling, Bearbetning, Transport och distribution [g CO2eq/MJ]: Delnormalvärden från STEMFS 2025:2 Bilaga 8,  Normalvärde för  minskningen av växthusgasutsläpp [%/100]: STEMFS 2025:2 Bilaga 5"]
["Träbriketter eller träpellets av träindustriavfall (fall 3a), transportsträcka 1–500 km",null,null,null,null,null,0.3,null,null,null,null,null,null,null,null,null,null,0,0.3,3.4,0.94,0.91,null,null,null,null,"Emissionsfaktor, Odling, Bearbetning, Transport och distribution [g CO2eq/MJ]: Delnormalvärden från STEMFS 2025:2 Bilaga 8,  Normalvärde för  minskningen av växthusgasutsläpp [%/100]: STEMFS 2025:2 Bilaga 5"]
["Träbriketter eller träpellets av träindustriavfall (fall 3a), transportsträcka 500–2 500 km",null,null,null,null,null,0.3,null,null,null,null,null,null,null,null,null,null,0,0.3,3.3,0.94,0.92,null,null,null,null,"Emissionsfaktor, Odling, Bearbetning, Transport och distribution [g CO2eq/MJ]: Delnormalvärden från STEMFS 2025:2 Bilaga 8,  Normalvärde för  minskningen av växthusgasutsläpp [%/100]: STEMFS 2025:2 Bilaga 5"]
["Träbriketter eller träpellets av träindustriavfall (fall 3a), transportsträcka 2 500–10 000  km",null,null,null,null,null,0.3,null,null,null,null,null,null,null,null,null,null,0,0.3,5.0999999999999996,0.92,0.88,null,null,null,null,"Emissionsfaktor, Odling, Bearbetning, Transport och distribution [g CO2eq/MJ]: Delnormalvärden från STEMFS 2025:2 Bilaga 8,  Normalvärde för  minskningen av växthusgasutsläpp [%/100]: STEMFS 2025:2 Bilaga 5"]
["Träbriketter eller träpellets av träindustriavfall (fall 3a), transportsträcka över 10 000 km",null,null,null,null,null,0.3,null,null,null,null,null,null,null,null,null,null,0,0.3,9.3000000000000007,0.85,0.78,null,null,null,null,"Emissionsfaktor, Odling, Bearbetning, Transport och distribution [g CO2eq/MJ]: Delnormalvärden från STEMFS 2025:2 Bilaga 8,  Normalvärde för  minskningen av växthusgasutsläpp [%/100]: STEMFS 2025:2 Bilaga 5"]
["Restprodukter från jordbruk med densitet < 0,2 ton/m3, transportsträcka 1–500 km",null,null,null,null,null,0.3,null,null,null,null,null,null,null,null,null,null,0,1.1000000000000001,3.1,0.93,0.9,null,null,null,null,"Emissionsfaktor, Odling, Bearbetning, Transport och distribution [g CO2eq/MJ]: Delnormalvärden från STEMFS 2025:2 Bilaga 8,  Normalvärde för  minskningen av växthusgasutsläpp [%/100]: STEMFS 2025:2 Bilaga 5"]
["Restprodukter från jordbruk med densitet < 0,2 ton/m3, transportsträcka 500–2 500 km",null,null,null,null,null,0.3,null,null,null,null,null,null,null,null,null,null,0,1.1000000000000001,7.8,0.86,0.8,null,null,null,null,"Emissionsfaktor, Odling, Bearbetning, Transport och distribution [g CO2eq/MJ]: Delnormalvärden från STEMFS 2025:2 Bilaga 8,  Normalvärde för  minskningen av växthusgasutsläpp [%/100]: STEMFS 2025:2 Bilaga 5"]
["Restprodukter från jordbruk med densitet < 0,2 ton/m3, transportsträcka 2 500–10 000 km",null,null,null,null,null,0.3,null,null,null,null,null,null,null,null,null,null,0,1.1000000000000001,17,0.73,0.6,null,null,null,null,"Emissionsfaktor, Odling, Bearbetning, Transport och distribution [g CO2eq/MJ]: Delnormalvärden från STEMFS 2025:2 Bilaga 8,  Normalvärde för  minskningen av växthusgasutsläpp [%/100]: STEMFS 2025:2 Bilaga 5"]
["Restprodukter från jordbruk med densitet < 0,2 ton/m3, transportsträcka över 10 000 km",null,null,null,null,null,0.3,null,null,null,null,null,null,null,null,null,null,0,1.1000000000000001,34,0.48,0.23,null,null,null,null,"Emissionsfaktor, Odling, Bearbetning, Transport och distribution [g CO2eq/MJ]: Delnormalvärden från STEMFS 2025:2 Bilaga 8,  Normalvärde för  minskningen av växthusgasutsläpp [%/100]: STEMFS 2025:2 Bilaga 5"]
["Restprodukter från jordbruk med densitet > 0,2 ton/m3, transportsträcka 1–500 km",null,null,null,null,null,0.3,null,null,null,null,null,null,null,null,null,null,0,1.1000000000000001,3.1,0.93,0.9,null,null,null,null,"Emissionsfaktor, Odling, Bearbetning, Transport och distribution [g CO2eq/MJ]: Delnormalvärden från STEMFS 2025:2 Bilaga 8,  Normalvärde för  minskningen av växthusgasutsläpp [%/100]: STEMFS 2025:2 Bilaga 5"]
["Restprodukter från jordbruk med densitet > 0,2 ton/m3, transportsträcka 500–2 500 km",null,null,null,null,null,0.3,null,null,null,null,null,null,null,null,null,null,0,1.1000000000000001,4.4000000000000004,0.92,0.87,null,null,null,null,"Emissionsfaktor, Odling, Bearbetning, Transport och distribution [g CO2eq/MJ]: Delnormalvärden från STEMFS 2025:2 Bilaga 8,  Normalvärde för  minskningen av växthusgasutsläpp [%/100]: STEMFS 2025:2 Bilaga 5"]
["Restprodukter från jordbruk med densitet > 0,2 ton/m3, transportsträcka 2 500–10 000 km",null,null,null,null,null,0.3,null,null,null,null,null,null,null,null,null,null,0,1.1000000000000001,8.5,0.85,0.78,null,null,null,null,"Emissionsfaktor, Odling, Bearbetning, Transport och distribution [g CO2eq/MJ]: Delnormalvärden från STEMFS 2025:2 Bilaga 8,  Normalvärde för  minskningen av växthusgasutsläpp [%/100]: STEMFS 2025:2 Bilaga 5"]
["Restprodukter från jordbruk med densitet > 0,2 ton/m3, transportsträcka över 10 000 km",null,null,null,null,null,0.3,null,null,null,null,null,null,null,null,null,null,0,1.1000000000000001,16.3,0.74,0.61,null,null,null,null,"Emissionsfaktor, Odling, Bearbetning, Transport och distribution [g CO2eq/MJ]: Delnormalvärden från STEMFS 2025:2 Bilaga 8,  Normalvärde för  minskningen av växthusgasutsläpp [%/100]: STEMFS 2025:2 Bilaga 5"]
["Halmpelletar, transportsträcka 1–500 km",null,null,null,null,null,0.3,null,null,null,null,null,null,null,null,null,null,0,6,3.6,0.85,0.78,null,null,null,null,"Emissionsfaktor, Odling, Bearbetning, Transport och distribution [g CO2eq/MJ]: Delnormalvärden från STEMFS 2025:2 Bilaga 8,  Normalvärde för  minskningen av växthusgasutsläpp [%/100]: STEMFS 2025:2 Bilaga 5"]
["Halmpelletar, transportsträcka 500–10 000 km",null,null,null,null,null,0.3,null,null,null,null,null,null,null,null,null,null,0,6,5.5,0.83,0.74,null,null,null,null,"Emissionsfaktor, Odling, Bearbetning, Transport och distribution [g CO2eq/MJ]: Delnormalvärden från STEMFS 2025:2 Bilaga 8,  Normalvärde för  minskningen av växthusgasutsläpp [%/100]: STEMFS 2025:2 Bilaga 5"]
["Halmpelletar, transportsträcka över 10 000 km",null,null,null,null,null,0.3,null,null,null,null,null,null,null,null,null,null,0,6,10,0.76,0.64,null,null,null,null,"Emissionsfaktor, Odling, Bearbetning, Transport och distribution [g CO2eq/MJ]: Delnormalvärden från STEMFS 2025:2 Bilaga 8,  Normalvärde för  minskningen av växthusgasutsläpp [%/100]: STEMFS 2025:2 Bilaga 5"]
["Bagassbriketter, transportsträcka 500–10 000 km",null,null,null,null,null,0.3,null,null,null,null,null,null,null,null,null,null,0,0.4,5.2,0.91,0.87,null,null,null,null,"Emissionsfaktor, Odling, Bearbetning, Transport och distribution [g CO2eq/MJ]: Delnormalvärden från STEMFS 2025:2 Bilaga 8,  Normalvärde för  minskningen av växthusgasutsläpp [%/100]: STEMFS 2025:2 Bilaga 5"]
["Bagassbriketter, transportsträcka över 10 000 km",null,null,null,null,null,0.3,null,null,null,null,null,null,null,null,null,null,0,0.4,9.5,0.85,0.77,null,null,null,null,"Emissionsfaktor, Odling, Bearbetning, Transport och distribution [g CO2eq/MJ]: Delnormalvärden från STEMFS 2025:2 Bilaga 8,  Normalvärde för  minskningen av växthusgasutsläpp [%/100]: STEMFS 2025:2 Bilaga 5"]
["Palmkärnmjöl, transportsträcka över 10 000 km",null,null,null,null,null,0.3,null,null,null,null,null,null,null,null,null,null,21.6,25.4,13.5,0.11,-0.33,null,null,null,null,"Emissionsfaktor, Odling, Bearbetning, Transport och distribution [g CO2eq/MJ]: Delnormalvärden från STEMFS 2025:2 Bilaga 8,  Normalvärde för  minskningen av växthusgasutsläpp [%/100]: STEMFS 2025:2 Bilaga 5"]
["Palmkärnmjöl (utan CH4- utsläpp från oljefabriken), transportsträcka över 10 000 km",null,null,null,null,null,0.3,null,null,null,null,null,null,null,null,null,null,21.6,4.2,13.5,0.42,0.14000000000000001,null,null,null,null,"Emissionsfaktor, Odling, Bearbetning, Transport och distribution [g CO2eq/MJ]: Delnormalvärden från STEMFS 2025:2 Bilaga 8,  Normalvärde för  minskningen av växthusgasutsläpp [%/100]: STEMFS 2025:2 Bilaga 5"]
["Bränsle"]
["ETBE",null,null,null,null,null,null,null,null,null,null,null,null,null,null,null,null,null,null,null,null,null,0.37,null,null,null,"Europaparlamentets och rådets direktiv (EU) 2018/2001 av den 11 december 2018 om främjande av användningen av energi från förnybara energikällor (omarbetning) , Annex III","Etyltertiärbutyleter som framställs med etanol som råvara."]
["TAEE",null,null,null,null,null,null,null,null,null,null,null,null,null,null,null,null,null,null,null,null,null,0.28999999999999998,null,null,null,null,"Tert-amyletyleter som framställs med etanol som råvara."]
["MTBE",null,null,null,null,null,null,null,null,null,null,null,null,null,null,null,null,null,null,null,null,null,0.22,null,null,null,null,"Metyltertiärbutyleter som framställs med metanol som råvara"]
["Användningsområde"]
["Motordrift",null,null,null,null,null,null,null,null,null,null,null,null,null,null,null,null,null,null,null,null,null,null,94,null,null,"STEMFS 2025:2 Statens energimyndighets föreskrifter om hållbarhetskriterier för vissa bränslen, Tabell 1"]
["Elproduktion",null,null,null,null,null,null,null,null,null,null,null,null,null,null,null,null,null,null,null,null,null,null,null,null,183]
["Kraftvärmeproduktion",null,null,null,null,null,null,null,null,null,null,null,null,null,null,null,null,null,null,null,null,null,null,null,80,183]
["Kraftvärmeproduktion (fysisk ersättning av kol)",null,null,null,null,null,null,null,null,null,null,null,null,null,null,null,null,null,null,null,null,null,null,null,124,183]
["Värme- Kylaproduktion",null,null,null,null,null,null,null,null,null,null,null,null,null,null,null,null,null,null,null,null,null,null,null,80]
["Värme – Kylaproduktion (fysik ersättning av kol)",null,null,null,null,null,null,null,null,null,null,null,null,null,null,null,null,null,null,null,null,null,null,null,124]
[]
[null,null,"Normal- och delnormalvärden  ","(*) Normalvärden för processer som utnyttjar kraftvärmeproduktion är giltiga endast om all processvärme tillhandahålls av kraftvärmeproduktionen."]
[null,null,null,"(**) Gäller endast biodrivmedel som produceras från animaliska biprodukter som klassificeras som kategori 1- och 2-material i enlighet med förordning (EG) nr 1069/2009, för vilka utsläpp kopplade till desinfektion som en del av utsmältningen inte beaktas."]
[]
[]
["Kraftvärme valt?",{"$f":"IF(OR('Indata och beräkning'!E6=\"Kraftvärmeproduktion\",'Indata och beräkning'!E6=\"Kraftvärmeproduktion (fysisk ersättning av kol)\"),\"ja\",\"nej\")","v":"nej"}]
["Enhet för Värmevärdet i Indata och beräkning, cell E11",{"$f":"IF(OR('Indata och beräkning'!E8=\"kg\",'Indata och beräkning'!E8=\"MWh\"), \"MJ/kg\", IF('Indata och beräkning'!E8=\"m3\", \"MJ/l vid 15° C\", \"\"))","v":""}]
["Enhet för Värmevärdet för övriga flytande bränslen och övriga fasta i Indata och beräkning, cell E12",{"$f":"IF('Indata och beräkning'!E8=\"kg\", \"MJ/kg\", IF('Indata och beräkning'!E8=\"m3\", \"MJ/l vid 15° C\", \"MJ/kg\"))","v":"MJ/kg"}]
[]
["Menyval"]
[null,null,"Grunddata"]
[]
["Bränsletyp",null,"Flytande","Fast"]
[]
["Bränsle",null,"Biodiesel","Bark",null,{"$f":"_xlfn.XLOOKUP('Indata och beräkning'!E4,Data!$C$267:$D$267,Data!$C$269:$D$280)&\"\"","v":{"$error":"#N/A"}}]
[null,null,"Butanol","Briketter/pellets"]
[null,null,"Etanol","Flis"]
[null,null,"ETBE","Sågspån"]
[null,null,"Bensin (Fischer-Tropsch)","Övriga fasta"]
[null,null,"Diesel (Fischer-Tropsch)"]
[null,null,"Metanol"]
[null,null,"MTBE"]
[null,null,"Ren vegetabilisk olja"]
[null,null,"TAEE"]
[null,null,"Vätebehandlad vegetabilisk olja"]
[null,null,"Övriga flytande"]
[]
["Anläggningens driftsättningsdatum",null,"Flytande","Fast",null,{"$f":"_xlfn.XLOOKUP('Indata och beräkning'!E4,Data!$C$282:$D$282,Data!$C$283:$D$287)&\"\"","v":{"$error":"#N/A"}}]
[null,null,{"$f":"\"\"","v":""},{"$f":"\"\"","v":""}]
[null,null,"Senast 5 oktober 2015","Senast 31 december 2020"]
[null,null,"Från 6 oktober 2015 till 31 december 2020","Från 1 januari 2021 till 31 december 2025"]
[null,null,"Från 1 januari 2021","Från 1 januari 2026"]
[null,null,"Okänt","Okänt"]
[]
[]
["Användningsområde",null,"Elproduktion","Kraftvärmeproduktion","Kraftvärmeproduktion (fysisk ersättning av kol)","Värme- Kylaproduktion","Värme- Kylaproduktion (fysisk ersättning av kol)",{"$f":"IF('Indata och beräkning'!E4=\"Fast\", \"\", \"Motordrift\")","v":"Motordrift"}]
[]
["Enhet, hållbar mängd",null,"Flytande","Fast",null,{"$f":"_xlfn.XLOOKUP('Indata och beräkning'!E4,Data!C292:D292,Data!C293:D294)&\"\"","v":{"$error":"#N/A"}}]
[null,null,"kg","MWh"]
[null,null,"m3"]
[]
[null,null,"kg","m3","MWh"]
["Enhet, effektivt värmevärde",null,"MJ/kg","MJ/l vid 15° C ",{"$f":"\"\"","v":""},{"$f":"_xlfn.XLOOKUP('Indata och beräkning'!E8,Data!C296:E296,Data!C297:E297)&\"\"","v":{"$error":"#N/A"}}]
[]
[]
["Metod för bestämmande av växthusgasutsläpp",null,"Faktiska värden","Delnormalvärden och faktiska värden",{"$f":"IF('Indata och beräkning'!E2=\"Flytande biobränsle\",\"\",\"Normalvärde\")","v":"Normalvärde"}]
[]
["Omfattning och metod - leverantörens tidigare utsläpp",null,"Omfattas ej","Leverantörens värde"]
["Omfattning - eec --> etd",null,"Omfattas ej","Ingår i leverantörens värde","Faktiskt värde","Eget värde",{"$f":"IF('Indata och beräkning'!E12=\"Faktiska värden\",\"\",\"Delnormalvärde\")","v":"Delnormalvärde"}]
["Omfattning - eu",null,"Omfattas ej","Ingår i leverantörens värde","Värde från genomförandeförordningen","Eget värde",{"$f":"IF(OR('Indata och beräkning'!E12=\"Faktiska värden\",'Indata och beräkning'!E4=\"Flytande\"),\"\",\"Delnormalvärde\")","v":"Delnormalvärde"}]
["Omfattning - Växthusgasutsläpp från energiomvandling (EC)",null,"Omfattas ej","Omfattas"]
[]
["Omfattning och metod - el",null,"Omfattas ej","Ingår i leverantörens värde","Eget värde (exkl bonus)","Eget värde (inkl bonus)"]
["Omfattning och metod - esca-->eccr",null,"Omfattas ej","Ingår i leverantörens värde","Eget värde"]
[]
[null,null,"Bearbetning (ep)"]
["Elmix",null,"Nordisk elmix","Svensk elmix","EU-elmix"]
["Bränsle till ångproduktion",null,"Stenkol","Eldningsolja","Naturgas","Torv","Biobränsle - Icke förädlade","Biobränslen - Förädlade","Verksamhetsavfall","Hushållsavfall","Gasol"]
[]
[]
[null,null,"Transport och distribution (etd)"]
["Omfattning",null,"Omfattas","Omfattas ej"]
["Uppvärmningskälla",null,"Fjärrvärme - Sverigemedel","Eldningsolja","Spillvärme","Biobränsle","Okänt"]
["Storlek på cistern",null,"Liten (2000 m3)","Medelstor (9000 m3)","Stor (30000 m3)","Okänd"]
[]
[]
["Vägtransport, fordonstyp",null,"Lätt lastbil","Tung lastbil","Okänt fordon","Järnvägstransport - el","Järnvägstransport - diesellok"]
[]
["Vägtransport - i Sverige, bränsleslag",null,"Svensk elmix","Svensk elmix","Svensk elmix","Svensk elmix","Diesel (svenskt medelvärde)",{"$f":"_xlfn.XLOOKUP('Indata och beräkning'!D85, Data!C321:G321, Data!C323:G335)&\"\"","v":{"$error":"#N/A"}}]
[null,null,"Diesel (svenskt medelvärde)","Diesel (svenskt medelvärde)","Diesel (svenskt medelvärde)",null,"Diesel MK1"]
[null,null,"Bensin MK1 ","Bensin MK1 ","Bensin MK1 ",null,"Diesel MK3"]
[null,null,"Diesel MK1","Diesel MK1","Diesel MK1"]
[null,null,"Diesel MK3","Diesel MK3","Diesel MK3"]
[null,null,"HVO100","HVO100","HVO100"]
[null,null,"FAME (B100)","FAME (B100)","FAME (B100)"]
[null,null,"Alkylatbensin","Alkylatbensin","Alkylatbensin"]
[null,null,"E85","E85","E85"]
[null,null,"ED95","ED95","ED95"]
[null,null,"Fordonsgas","Fordonsgas","Fordonsgas"]
[null,null,"LNG/LBG","LNG/LBG","LNG/LBG"]
[null,null,"Okänt","Okänt","Okänt"]
[]
["Vägtransport - utomlands, bränsleslag utrikes",null,{"$f":"C321","v":"Lätt lastbil"},{"$f":"D321","v":"Tung lastbil"},"Okänt fordon","Järnvägstransport - el","Järnvägstransport - diesellok"]
[]
[null,null,"EU-elmix","EU-elmix","EU-elmix","EU-elmix","Diesel MK1",{"$f":"_xlfn.XLOOKUP('Indata och beräkning'!E85, C337:G337, C339:G351)&\"\"","v":{"$error":"#N/A"}}]
[null,null,"Diesel (svenskt medelvärde)","Diesel (svenskt medelvärde)","Diesel (svenskt medelvärde)",null,"Diesel MK3"]
[null,null,"Bensin MK1 ","Bensin MK1 ","Bensin MK1 "]
[null,null,"Diesel MK1","Diesel MK1","Diesel MK1"]
[null,null,"Diesel MK3","Diesel MK3","Diesel MK3"]
[null,null,"HVO100","HVO100","HVO100"]
[null,null,"FAME (B100)","FAME (B100)","FAME (B100)"]
[null,null,"Alkylatbensin","Alkylatbensin","Alkylatbensin"]
[null,null,"E85","E85","E85"]
[null,null,"ED95","ED95","ED95"]
[null,null,"Fordonsgas","Fordonsgas","Fordonsgas"]
[null,null,"LNG/LBG","LNG/LBG","LNG/LBG"]
[null,null,"Okänt","Okänt","Okänt"]
[]
[]
[]
["Menyval för produktionskedja. Här ges olika menyval beroende på om man valt Fast eller Flytande bränsle"]
[]
[null,{"$f":"IF('Indata och beräkning'!E4=\"Flytande\",_xlfn.XLOOKUP('Indata och beräkning'!E4,Data!A98,_xlfn.VSTACK(A99:A133,A135:A147)), IF('Indata och beräkning'!E4=\"Fast\", _xlfn.XLOOKUP('Indata och beräkning'!E4,Data!A150,Data!A151:A243),\"\"))","v":""}]

{"sheet":"Fördjupning med ekvationer","index":5,"n_rows":56,"n_cols":19,"rows_kept":56,"cut":false,"hidden":false,"merged":[]}
[null,null,null,null,null,null,null,null,null,null,null,null,null,null,null,null,null,null,{"$f":"versionsnummer","v":"v1.1"}]
["Fördjupning"]
["Bakomliggande ekvationer till respektive beräkning"]
["Utsläpp vid bearbetning"]
[]
[]
[]
[]
[]
[]
[]
[]
[]
[]
[]
[]
[]
[]
[]
[]
[]
[]
[]
["Utsläpp vid lagring"]
[]
[]
[]
[]
[]
[]
[]
[]
[]
[]
["Energiförlust för lagrat bränsle [MJ/mån] bygger på bortledd värme från cisternen där biobränslet lagras. Cisternen antas vara halvfylld. Endast beräkning för vald omfattning."]
[]
[]
["Utsläpp vid sjötransporter"]
[]
[]
[]
[]
[]
[]
[]
[]
[]
[]
[]
[]
[]
[]
["Deplacement = vikt av lastat skepp inklusive allt (fartygets vikt, last, bränsle etc)."]
[]
[]
["Utsläpp vid landtransporter"]